Workbook

Sheet Écuries
B3: ÉCURIES | C3: POINTS | D3: RANG
B4: MERCEDES | C4: =SUM('Melbourne:Abu Dabi'!I5) -> 394 | D4: =IF(C4="",0,(RANK(C4,$C$4:$C$13)))+COUNTIF(C$4:C4,C4)-1 -> 1
B5: FERRARI | C5: =SUM('Melbourne:Abu Dabi'!I6) -> 266 | D5: =IF(C5="",0,(RANK(C5,$C$4:$C$13)))+COUNTIF(C$4:C5,C5)-1 -> 2
B6: RED BULL | C6: =SUM('Melbourne:Abu Dabi'!I7) -> 229 | D6: =IF(C6="",0,(RANK(C6,$C$4:$C$13)))+COUNTIF(C$4:C6,C6)-1 -> 3
B7: Mc LAREN | C7: =SUM('Melbourne:Abu Dabi'!I13) -> 82 | D7: =IF(C7="",0,(RANK(C7,$C$4:$C$13)))+COUNTIF(C$4:C7,C7)-1 -> 4
B8: TORO ROSSO | C8: =SUM('Melbourne:Abu Dabi'!I11) -> 42 | D8: =IF(C8="",0,(RANK(C8,$C$4:$C$13)))+COUNTIF(C$4:C8,C8)-1 -> 5
B9: RENAULT | C9: =SUM('Melbourne:Abu Dabi'!I10) -> 33 | D9: =IF(C9="",0,(RANK(C9,$C$4:$C$13)))+COUNTIF(C$4:C9,C9)-1 -> 6
B10: RACING POINT | C10: =SUM('Melbourne:Abu Dabi'!I8) -> 29 | D10: =IF(C10="",0,(RANK(C10,$C$4:$C$13)))+COUNTIF(C$4:C10,C10)-1 -> 7
B11: ALFA ROMÉO | C11: =SUM('Melbourne:Abu Dabi'!I14) -> 28 | D11: =IF(C11="",0,(RANK(C11,$C$4:$C$13)))+COUNTIF(C$4:C11,C11)-1 -> 8
B12: HASS | C12: =SUM('Melbourne:Abu Dabi'!I12) -> 18 | D12: =IF(C12="",0,(RANK(C12,$C$4:$C$13)))+COUNTIF(C$4:C12,C12)-1 -> 9
B13: WILLIAMS | C13: =SUM('Melbourne:Abu Dabi'!I9) -> 1 | D13: =IF(C13="",0,(RANK(C13,$C$4:$C$13)))+COUNTIF(C$4:C13,C13)-1 -> 10

Sheet Pilotes
P1: # Course
O2: Depuis | P2: Jusqu'à
B3: PILOTES | C3: Points | D3: Place | E3: ="Nombre de Fois sur les "&P3&" Courses" -> Nombre de Fois sur les 14 Courses | O3: 1 | P3: 14
C4: =IFERROR(SUM(Melbourne!F33,[1]Bahreïn!F33),"") -> 0 | D4: =IF(C4=0,"",(RANK(C4,C1:C4))) ->  | E4: =COLUMN()-4 -> 1 | F4: =COLUMN()-4 -> 2 | G4: 3 | H4: 4 | I4: 5 | J4: 6 | K4: 7 | L4: 8 | M4: 9 | N4: 10
B5: Lewis HAMILON | C5: =SUM('Melbourne:Abu Dabi'!F5) -> 250 | D5: =IF(C5="",0,(RANK(C5,$C$5:$C$24)))+COUNTIF(C$5:C5,C5)-1 -> 1 | E5: =SUM(IF((MATCH(Feuilles,Feuilles,0)>=$O$3)*(MATCH(Feuilles,Feuilles,0)<=$P$3),COUNTIF(INDIRECT("'"&Feuilles&"'!"&"D"&ROW()),E$4))) -> 9 | F5: =SUM(IF((MATCH(Feuilles,Feuilles,0)>=$O$3)*(MATCH(Feuilles,Feuilles,0)<=$P$3),COUNTIF(INDIRECT("'"&Feuilles&"'!"&"D"&ROW()),F$4))) -> 3 | G5: =SUM(IF((MATCH(Feuilles,Feuilles,0)>=$O$3)*(MATCH(Feuilles,Feuilles,0)<=$P$3),COUNTIF(INDIRECT("'"&Feuilles&"'!"&"D"&ROW()),G$4))) -> 0 | H5: =SUM(IF((MATCH(Feuilles,Feuilles,0)>=$O$3)*(MATCH(Feuilles,Feuilles,0)<=$P$3),COUNTIF(INDIRECT("'"&Feuilles&"'!"&"D"&ROW()),H$4))) -> 0 | I5: =SUM(IF((MATCH(Feuilles,Feuilles,0)>=$O$3)*(MATCH(Feuilles,Feuilles,0)<=$P$3),COUNTIF(INDIRECT("'"&Feuilles&"'!"&"D"&ROW()),I$4))) -> 1 | J5: =SUM(IF((MATCH(Feuilles,Feuilles,0)>=$O$3)*(MATCH(Feuilles,Feuilles,0)<=$P$3),COUNTIF(INDIRECT("'"&Feuilles&"'!"&"D"&ROW()),J$4))) -> 0 | K5: =SUM(IF((MATCH(Feuilles,Feuilles,0)>=$O$3)*(MATCH(Feuilles,Feuilles,0)<=$P$3),COUNTIF(INDIRECT("'"&Feuilles&"'!"&"D"&ROW()),K$4))) -> 0 | L5: =SUM(IF((MATCH(Feuilles,Feuilles,0)>=$O$3)*(MATCH(Feuilles,Feuilles,0)<=$P$3),COUNTIF(INDIRECT("'"&Feuilles&"'!"&"D"&ROW()),L$4))) -> 0 | M5: =SUM(IF((MATCH(Feuilles,Feuilles,0)>=$O$3)*(MATCH(Feuilles,Feuilles,0)<=$P$3),COUNTIF(INDIRECT("'"&Feuilles&"'!"&"D"&ROW()),M$4))) -> 1 | N5: =SUM(IF((MATCH(Feuilles,Feuilles,0)>=$O$3)*(MATCH(Feuilles,Feuilles,0)<=$P$3),COUNTIF(INDIRECT("'"&Feuilles&"'!"&"D"&ROW()),N$4))) -> 0
B6: Valteri BOTTAS | C6: =SUM('Melbourne:Abu Dabi'!F6) -> 188 | D6: =IF(C6="",0,(RANK(C6,$C$5:$C$24)))+COUNTIF(C$5:C6,C6)-1 -> 2 | E6: =SUM(IF((MATCH(Feuilles,Feuilles,0)>=$O$3)*(MATCH(Feuilles,Feuilles,0)<=$P$3),COUNTIF(INDIRECT("'"&Feuilles&"'!"&"D"&ROW()),E$4))) -> 2 | F6: =SUM(IF((MATCH(Feuilles,Feuilles,0)>=$O$3)*(MATCH(Feuilles,Feuilles,0)<=$P$3),COUNTIF(INDIRECT("'"&Feuilles&"'!"&"D"&ROW()),F$4))) -> 6 | G6: =SUM(IF((MATCH(Feuilles,Feuilles,0)>=$O$3)*(MATCH(Feuilles,Feuilles,0)<=$P$3),COUNTIF(INDIRECT("'"&Feuilles&"'!"&"D"&ROW()),G$4))) -> 3 | H6: =SUM(IF((MATCH(Feuilles,Feuilles,0)>=$O$3)*(MATCH(Feuilles,Feuilles,0)<=$P$3),COUNTIF(INDIRECT("'"&Feuilles&"'!"&"D"&ROW()),H$4))) -> 1 | I6: =SUM(IF((MATCH(Feuilles,Feuilles,0)>=$O$3)*(MATCH(Feuilles,Feuilles,0)<=$P$3),COUNTIF(INDIRECT("'"&Feuilles&"'!"&"D"&ROW()),I$4))) -> 0 | J6: =SUM(IF((MATCH(Feuilles,Feuilles,0)>=$O$3)*(MATCH(Feuilles,Feuilles,0)<=$P$3),COUNTIF(INDIRECT("'"&Feuilles&"'!"&"D"&ROW()),J$4))) -> 0 | K6: =SUM(IF((MATCH(Feuilles,Feuilles,0)>=$O$3)*(MATCH(Feuilles,Feuilles,0)<=$P$3),COUNTIF(INDIRECT("'"&Feuilles&"'!"&"D"&ROW()),K$4))) -> 0 | L6: =SUM(IF((MATCH(Feuilles,Feuilles,0)>=$O$3)*(MATCH(Feuilles,Feuilles,0)<=$P$3),COUNTIF(INDIRECT("'"&Feuilles&"'!"&"D"&ROW()),L$4))) -> 1 | M6: =SUM(IF((MATCH(Feuilles,Feuilles,0)>=$O$3)*(MATCH(Feuilles,Feuilles,0)<=$P$3),COUNTIF(INDIRECT("'"&Feuilles&"'!"&"D"&ROW()),M$4))) -> 0 | N6: =SUM(IF((MATCH(Feuilles,Feuilles,0)>=$O$3)*(MATCH(Feuilles,Feuilles,0)<=$P$3),COUNTIF(INDIRECT("'"&Feuilles&"'!"&"D"&ROW()),N$4))) -> 0
B7: Max VERSTAPPEN | C7: =SUM('Melbourne:Abu Dabi'!F11) -> 181 | D7: =IF(C7="",0,(RANK(C7,$C$5:$C$24)))+COUNTIF(C$5:C7,C7)-1 -> 3 | E7: =SUM(IF((MATCH(Feuilles,Feuilles,0)>=$O$3)*(MATCH(Feuilles,Feuilles,0)<=$P$3),COUNTIF(INDIRECT("'"&Feuilles&"'!"&"D"&ROW()),E$4))) -> 0 | F7: =SUM(IF((MATCH(Feuilles,Feuilles,0)>=$O$3)*(MATCH(Feuilles,Feuilles,0)<=$P$3),COUNTIF(INDIRECT("'"&Feuilles&"'!"&"D"&ROW()),F$4))) -> 0 | G7: =SUM(IF((MATCH(Feuilles,Feuilles,0)>=$O$3)*(MATCH(Feuilles,Feuilles,0)<=$P$3),COUNTIF(INDIRECT("'"&Feuilles&"'!"&"D"&ROW()),G$4))) -> 1 | H7: =SUM(IF((MATCH(Feuilles,Feuilles,0)>=$O$3)*(MATCH(Feuilles,Feuilles,0)<=$P$3),COUNTIF(INDIRECT("'"&Feuilles&"'!"&"D"&ROW()),H$4))) -> 1 | I7: =SUM(IF((MATCH(Feuilles,Feuilles,0)>=$O$3)*(MATCH(Feuilles,Feuilles,0)<=$P$3),COUNTIF(INDIRECT("'"&Feuilles&"'!"&"D"&ROW()),I$4))) -> 0 | J7: =SUM(IF((MATCH(Feuilles,Feuilles,0)>=$O$3)*(MATCH(Feuilles,Feuilles,0)<=$P$3),COUNTIF(INDIRECT("'"&Feuilles&"'!"&"D"&ROW()),J$4))) -> 0 | K7: =SUM(IF((MATCH(Feuilles,Feuilles,0)>=$O$3)*(MATCH(Feuilles,Feuilles,0)<=$P$3),COUNTIF(INDIRECT("'"&Feuilles&"'!"&"D"&ROW()),K$4))) -> 0 | L7: =SUM(IF((MATCH(Feuilles,Feuilles,0)>=$O$3)*(MATCH(Feuilles,Feuilles,0)<=$P$3),COUNTIF(INDIRECT("'"&Feuilles&"'!"&"D"&ROW()),L$4))) -> 0 | M7: =SUM(IF((MATCH(Feuilles,Feuilles,0)>=$O$3)*(MATCH(Feuilles,Feuilles,0)<=$P$3),COUNTIF(INDIRECT("'"&Feuilles&"'!"&"D"&ROW()),M$4))) -> 0 | N7: =SUM(IF((MATCH(Feuilles,Feuilles,0)>=$O$3)*(MATCH(Feuilles,Feuilles,0)<=$P$3),COUNTIF(INDIRECT("'"&Feuilles&"'!"&"D"&ROW()),N$4))) -> 0
B8: Sebastian VETTEL | C8: =SUM('Melbourne:Abu Dabi'!F8) -> 156 | D8: =IF(C8="",0,(RANK(C8,$C$5:$C$24)))+COUNTIF(C$5:C8,C8)-1 -> 4 | E8: =SUM(IF((MATCH(Feuilles,Feuilles,0)>=$O$3)*(MATCH(Feuilles,Feuilles,0)<=$P$3),COUNTIF(INDIRECT("'"&Feuilles&"'!"&"D"&ROW()),E$4))) -> 0 | F8: =SUM(IF((MATCH(Feuilles,Feuilles,0)>=$O$3)*(MATCH(Feuilles,Feuilles,0)<=$P$3),COUNTIF(INDIRECT("'"&Feuilles&"'!"&"D"&ROW()),F$4))) -> 3 | G8: =SUM(IF((MATCH(Feuilles,Feuilles,0)>=$O$3)*(MATCH(Feuilles,Feuilles,0)<=$P$3),COUNTIF(INDIRECT("'"&Feuilles&"'!"&"D"&ROW()),G$4))) -> 3 | H8: =SUM(IF((MATCH(Feuilles,Feuilles,0)>=$O$3)*(MATCH(Feuilles,Feuilles,0)<=$P$3),COUNTIF(INDIRECT("'"&Feuilles&"'!"&"D"&ROW()),H$4))) -> 4 | I8: =SUM(IF((MATCH(Feuilles,Feuilles,0)>=$O$3)*(MATCH(Feuilles,Feuilles,0)<=$P$3),COUNTIF(INDIRECT("'"&Feuilles&"'!"&"D"&ROW()),I$4))) -> 3 | J8: =SUM(IF((MATCH(Feuilles,Feuilles,0)>=$O$3)*(MATCH(Feuilles,Feuilles,0)<=$P$3),COUNTIF(INDIRECT("'"&Feuilles&"'!"&"D"&ROW()),J$4))) -> 0 | K8: =SUM(IF((MATCH(Feuilles,Feuilles,0)>=$O$3)*(MATCH(Feuilles,Feuilles,0)<=$P$3),COUNTIF(INDIRECT("'"&Feuilles&"'!"&"D"&ROW()),K$4))) -> 0 | L8: =SUM(IF((MATCH(Feuilles,Feuilles,0)>=$O$3)*(MATCH(Feuilles,Feuilles,0)<=$P$3),COUNTIF(INDIRECT("'"&Feuilles&"'!"&"D"&ROW()),L$4))) -> 0 | M8: =SUM(IF((MATCH(Feuilles,Feuilles,0)>=$O$3)*(MATCH(Feuilles,Feuilles,0)<=$P$3),COUNTIF(INDIRECT("'"&Feuilles&"'!"&"D"&ROW()),M$4))) -> 0 | N8: =SUM(IF((MATCH(Feuilles,Feuilles,0)>=$O$3)*(MATCH(Feuilles,Feuilles,0)<=$P$3),COUNTIF(INDIRECT("'"&Feuilles&"'!"&"D"&ROW()),N$4))) -> 0
B9: Charles LECLERC | C9: =SUM('Melbourne:Abu Dabi'!F9) -> 132 | D9: =IF(C9="",0,(RANK(C9,$C$5:$C$24)))+COUNTIF(C$5:C9,C9)-1 -> 5 | E9: =SUM(IF((MATCH(Feuilles,Feuilles,0)>=$O$3)*(MATCH(Feuilles,Feuilles,0)<=$P$3),COUNTIF(INDIRECT("'"&Feuilles&"'!"&"D"&ROW()),E$4))) -> 0 | F9: =SUM(IF((MATCH(Feuilles,Feuilles,0)>=$O$3)*(MATCH(Feuilles,Feuilles,0)<=$P$3),COUNTIF(INDIRECT("'"&Feuilles&"'!"&"D"&ROW()),F$4))) -> 1 | G9: =SUM(IF((MATCH(Feuilles,Feuilles,0)>=$O$3)*(MATCH(Feuilles,Feuilles,0)<=$P$3),COUNTIF(INDIRECT("'"&Feuilles&"'!"&"D"&ROW()),G$4))) -> 4 | H9: =SUM(IF((MATCH(Feuilles,Feuilles,0)>=$O$3)*(MATCH(Feuilles,Feuilles,0)<=$P$3),COUNTIF(INDIRECT("'"&Feuilles&"'!"&"D"&ROW()),H$4))) -> 1 | I9: =SUM(IF((MATCH(Feuilles,Feuilles,0)>=$O$3)*(MATCH(Feuilles,Feuilles,0)<=$P$3),COUNTIF(INDIRECT("'"&Feuilles&"'!"&"D"&ROW()),I$4))) -> 5 | J9: =SUM(IF((MATCH(Feuilles,Feuilles,0)>=$O$3)*(MATCH(Feuilles,Feuilles,0)<=$P$3),COUNTIF(INDIRECT("'"&Feuilles&"'!"&"D"&ROW()),J$4))) -> 1 | K9: =SUM(IF((MATCH(Feuilles,Feuilles,0)>=$O$3)*(MATCH(Feuilles,Feuilles,0)<=$P$3),COUNTIF(INDIRECT("'"&Feuilles&"'!"&"D"&ROW()),K$4))) -> 0 | L9: =SUM(IF((MATCH(Feuilles,Feuilles,0)>=$O$3)*(MATCH(Feuilles,Feuilles,0)<=$P$3),COUNTIF(INDIRECT("'"&Feuilles&"'!"&"D"&ROW()),L$4))) -> 0 | M9: =SUM(IF((MATCH(Feuilles,Feuilles,0)>=$O$3)*(MATCH(Feuilles,Feuilles,0)<=$P$3),COUNTIF(INDIRECT("'"&Feuilles&"'!"&"D"&ROW()),M$4))) -> 0 | N9: =SUM(IF((MATCH(Feuilles,Feuilles,0)>=$O$3)*(MATCH(Feuilles,Feuilles,0)<=$P$3),COUNTIF(INDIRECT("'"&Feuilles&"'!"&"D"&ROW()),N$4))) -> 0
B10: Pierre GASLY | C10: =SUM('Melbourne:Abu Dabi'!F12) -> 63 | D10: =IF(C10="",0,(RANK(C10,$C$5:$C$24)))+COUNTIF(C$5:C10,C10)-1 -> 6 | E10: =SUM(IF((MATCH(Feuilles,Feuilles,0)>=$O$3)*(MATCH(Feuilles,Feuilles,0)<=$P$3),COUNTIF(INDIRECT("'"&Feuilles&"'!"&"D"&ROW()),E$4))) -> 0 | F10: =SUM(IF((MATCH(Feuilles,Feuilles,0)>=$O$3)*(MATCH(Feuilles,Feuilles,0)<=$P$3),COUNTIF(INDIRECT("'"&Feuilles&"'!"&"D"&ROW()),F$4))) -> 0 | G10: =SUM(IF((MATCH(Feuilles,Feuilles,0)>=$O$3)*(MATCH(Feuilles,Feuilles,0)<=$P$3),COUNTIF(INDIRECT("'"&Feuilles&"'!"&"D"&ROW()),G$4))) -> 0 | H10: =SUM(IF((MATCH(Feuilles,Feuilles,0)>=$O$3)*(MATCH(Feuilles,Feuilles,0)<=$P$3),COUNTIF(INDIRECT("'"&Feuilles&"'!"&"D"&ROW()),H$4))) -> 0 | I10: =SUM(IF((MATCH(Feuilles,Feuilles,0)>=$O$3)*(MATCH(Feuilles,Feuilles,0)<=$P$3),COUNTIF(INDIRECT("'"&Feuilles&"'!"&"D"&ROW()),I$4))) -> 0 | J10: =SUM(IF((MATCH(Feuilles,Feuilles,0)>=$O$3)*(MATCH(Feuilles,Feuilles,0)<=$P$3),COUNTIF(INDIRECT("'"&Feuilles&"'!"&"D"&ROW()),J$4))) -> 1 | K10: =SUM(IF((MATCH(Feuilles,Feuilles,0)>=$O$3)*(MATCH(Feuilles,Feuilles,0)<=$P$3),COUNTIF(INDIRECT("'"&Feuilles&"'!"&"D"&ROW()),K$4))) -> 1 | L10: =SUM(IF((MATCH(Feuilles,Feuilles,0)>=$O$3)*(MATCH(Feuilles,Feuilles,0)<=$P$3),COUNTIF(INDIRECT("'"&Feuilles&"'!"&"D"&ROW()),L$4))) -> 0 | M10: =SUM(IF((MATCH(Feuilles,Feuilles,0)>=$O$3)*(MATCH(Feuilles,Feuilles,0)<=$P$3),COUNTIF(INDIRECT("'"&Feuilles&"'!"&"D"&ROW()),M$4))) -> 0 | N10: =SUM(IF((MATCH(Feuilles,Feuilles,0)>=$O$3)*(MATCH(Feuilles,Feuilles,0)<=$P$3),COUNTIF(INDIRECT("'"&Feuilles&"'!"&"D"&ROW()),N$4))) -> 0
B11: Carlos SAINZ | C11: =SUM('Melbourne:Abu Dabi'!F30) -> 58 | D11: =IF(C11="",0,(RANK(C11,$C$5:$C$24)))+COUNTIF(C$5:C11,C11)-1 -> 7 | E11: =SUM(IF((MATCH(Feuilles,Feuilles,0)>=$O$3)*(MATCH(Feuilles,Feuilles,0)<=$P$3),COUNTIF(INDIRECT("'"&Feuilles&"'!"&"D"&ROW()),E$4))) -> 2 | F11: =SUM(IF((MATCH(Feuilles,Feuilles,0)>=$O$3)*(MATCH(Feuilles,Feuilles,0)<=$P$3),COUNTIF(INDIRECT("'"&Feuilles&"'!"&"D"&ROW()),F$4))) -> 1 | G11: =SUM(IF((MATCH(Feuilles,Feuilles,0)>=$O$3)*(MATCH(Feuilles,Feuilles,0)<=$P$3),COUNTIF(INDIRECT("'"&Feuilles&"'!"&"D"&ROW()),G$4))) -> 2 | H11: =SUM(IF((MATCH(Feuilles,Feuilles,0)>=$O$3)*(MATCH(Feuilles,Feuilles,0)<=$P$3),COUNTIF(INDIRECT("'"&Feuilles&"'!"&"D"&ROW()),H$4))) -> 5 | I11: =SUM(IF((MATCH(Feuilles,Feuilles,0)>=$O$3)*(MATCH(Feuilles,Feuilles,0)<=$P$3),COUNTIF(INDIRECT("'"&Feuilles&"'!"&"D"&ROW()),I$4))) -> 2 | J11: =SUM(IF((MATCH(Feuilles,Feuilles,0)>=$O$3)*(MATCH(Feuilles,Feuilles,0)<=$P$3),COUNTIF(INDIRECT("'"&Feuilles&"'!"&"D"&ROW()),J$4))) -> 0 | K11: =SUM(IF((MATCH(Feuilles,Feuilles,0)>=$O$3)*(MATCH(Feuilles,Feuilles,0)<=$P$3),COUNTIF(INDIRECT("'"&Feuilles&"'!"&"D"&ROW()),K$4))) -> 1 | L11: =SUM(IF((MATCH(Feuilles,Feuilles,0)>=$O$3)*(MATCH(Feuilles,Feuilles,0)<=$P$3),COUNTIF(INDIRECT("'"&Feuilles&"'!"&"D"&ROW()),L$4))) -> 1 | M11: =SUM(IF((MATCH(Feuilles,Feuilles,0)>=$O$3)*(MATCH(Feuilles,Feuilles,0)<=$P$3),COUNTIF(INDIRECT("'"&Feuilles&"'!"&"D"&ROW()),M$4))) -> 0 | N11: =SUM(IF((MATCH(Feuilles,Feuilles,0)>=$O$3)*(MATCH(Feuilles,Feuilles,0)<=$P$3),COUNTIF(INDIRECT("'"&Feuilles&"'!"&"D"&ROW()),N$4))) -> 0
B12: Kimi RAÏKKONEN | C12: =SUM('Melbourne:Abu Dabi'!F32) -> 31 | D12: =IF(C12="",0,(RANK(C12,$C$5:$C$24)))+COUNTIF(C$5:C12,C12)-1 -> 8 | E12: =SUM(IF((MATCH(Feuilles,Feuilles,0)>=$O$3)*(MATCH(Feuilles,Feuilles,0)<=$P$3),COUNTIF(INDIRECT("'"&Feuilles&"'!"&"D"&ROW()),E$4))) -> 0 | F12: =SUM(IF((MATCH(Feuilles,Feuilles,0)>=$O$3)*(MATCH(Feuilles,Feuilles,0)<=$P$3),COUNTIF(INDIRECT("'"&Feuilles&"'!"&"D"&ROW()),F$4))) -> 0 | G12: =SUM(IF((MATCH(Feuilles,Feuilles,0)>=$O$3)*(MATCH(Feuilles,Feuilles,0)<=$P$3),COUNTIF(INDIRECT("'"&Feuilles&"'!"&"D"&ROW()),G$4))) -> 0 | H12: =SUM(IF((MATCH(Feuilles,Feuilles,0)>=$O$3)*(MATCH(Feuilles,Feuilles,0)<=$P$3),COUNTIF(INDIRECT("'"&Feuilles&"'!"&"D"&ROW()),H$4))) -> 1 | I12: =SUM(IF((MATCH(Feuilles,Feuilles,0)>=$O$3)*(MATCH(Feuilles,Feuilles,0)<=$P$3),COUNTIF(INDIRECT("'"&Feuilles&"'!"&"D"&ROW()),I$4))) -> 1 | J12: =SUM(IF((MATCH(Feuilles,Feuilles,0)>=$O$3)*(MATCH(Feuilles,Feuilles,0)<=$P$3),COUNTIF(INDIRECT("'"&Feuilles&"'!"&"D"&ROW()),J$4))) -> 3 | K12: =SUM(IF((MATCH(Feuilles,Feuilles,0)>=$O$3)*(MATCH(Feuilles,Feuilles,0)<=$P$3),COUNTIF(INDIRECT("'"&Feuilles&"'!"&"D"&ROW()),K$4))) -> 1 | L12: =SUM(IF((MATCH(Feuilles,Feuilles,0)>=$O$3)*(MATCH(Feuilles,Feuilles,0)<=$P$3),COUNTIF(INDIRECT("'"&Feuilles&"'!"&"D"&ROW()),L$4))) -> 3 | M12: =SUM(IF((MATCH(Feuilles,Feuilles,0)>=$O$3)*(MATCH(Feuilles,Feuilles,0)<=$P$3),COUNTIF(INDIRECT("'"&Feuilles&"'!"&"D"&ROW()),M$4))) -> 1 | N12: =SUM(IF((MATCH(Feuilles,Feuilles,0)>=$O$3)*(MATCH(Feuilles,Feuilles,0)<=$P$3),COUNTIF(INDIRECT("'"&Feuilles&"'!"&"D"&ROW()),N$4))) -> 1
B13: Daniil KVYAT | C13: =SUM('Melbourne:Abu Dabi'!F23) -> 27 | D13: =IF(C13="",0,(RANK(C13,$C$5:$C$24)))+COUNTIF(C$5:C13,C13)-1 -> 9 | E13: =SUM(IF((MATCH(Feuilles,Feuilles,0)>=$O$3)*(MATCH(Feuilles,Feuilles,0)<=$P$3),COUNTIF(INDIRECT("'"&Feuilles&"'!"&"D"&ROW()),E$4))) -> 0 | F13: =SUM(IF((MATCH(Feuilles,Feuilles,0)>=$O$3)*(MATCH(Feuilles,Feuilles,0)<=$P$3),COUNTIF(INDIRECT("'"&Feuilles&"'!"&"D"&ROW()),F$4))) -> 0 | G13: =SUM(IF((MATCH(Feuilles,Feuilles,0)>=$O$3)*(MATCH(Feuilles,Feuilles,0)<=$P$3),COUNTIF(INDIRECT("'"&Feuilles&"'!"&"D"&ROW()),G$4))) -> 0 | H13: =SUM(IF((MATCH(Feuilles,Feuilles,0)>=$O$3)*(MATCH(Feuilles,Feuilles,0)<=$P$3),COUNTIF(INDIRECT("'"&Feuilles&"'!"&"D"&ROW()),H$4))) -> 0 | I13: =SUM(IF((MATCH(Feuilles,Feuilles,0)>=$O$3)*(MATCH(Feuilles,Feuilles,0)<=$P$3),COUNTIF(INDIRECT("'"&Feuilles&"'!"&"D"&ROW()),I$4))) -> 0 | J13: =SUM(IF((MATCH(Feuilles,Feuilles,0)>=$O$3)*(MATCH(Feuilles,Feuilles,0)<=$P$3),COUNTIF(INDIRECT("'"&Feuilles&"'!"&"D"&ROW()),J$4))) -> 0 | K13: =SUM(IF((MATCH(Feuilles,Feuilles,0)>=$O$3)*(MATCH(Feuilles,Feuilles,0)<=$P$3),COUNTIF(INDIRECT("'"&Feuilles&"'!"&"D"&ROW()),K$4))) -> 0 | L13: =SUM(IF((MATCH(Feuilles,Feuilles,0)>=$O$3)*(MATCH(Feuilles,Feuilles,0)<=$P$3),COUNTIF(INDIRECT("'"&Feuilles&"'!"&"D"&ROW()),L$4))) -> 0 | M13: =SUM(IF((MATCH(Feuilles,Feuilles,0)>=$O$3)*(MATCH(Feuilles,Feuilles,0)<=$P$3),COUNTIF(INDIRECT("'"&Feuilles&"'!"&"D"&ROW()),M$4))) -> 1 | N13: =SUM(IF((MATCH(Feuilles,Feuilles,0)>=$O$3)*(MATCH(Feuilles,Feuilles,0)<=$P$3),COUNTIF(INDIRECT("'"&Feuilles&"'!"&"D"&ROW()),N$4))) -> 1
B14: Lando NORRIS | C14: =SUM('Melbourne:Abu Dabi'!F29) -> 24 | D14: =IF(C14="",0,(RANK(C14,$C$5:$C$24)))+COUNTIF(C$5:C14,C14)-1 -> 10 | E14: =SUM(IF((MATCH(Feuilles,Feuilles,0)>=$O$3)*(MATCH(Feuilles,Feuilles,0)<=$P$3),COUNTIF(INDIRECT("'"&Feuilles&"'!"&"D"&ROW()),E$4))) -> 0 | F14: =SUM(IF((MATCH(Feuilles,Feuilles,0)>=$O$3)*(MATCH(Feuilles,Feuilles,0)<=$P$3),COUNTIF(INDIRECT("'"&Feuilles&"'!"&"D"&ROW()),F$4))) -> 0 | G14: =SUM(IF((MATCH(Feuilles,Feuilles,0)>=$O$3)*(MATCH(Feuilles,Feuilles,0)<=$P$3),COUNTIF(INDIRECT("'"&Feuilles&"'!"&"D"&ROW()),G$4))) -> 0 | H14: =SUM(IF((MATCH(Feuilles,Feuilles,0)>=$O$3)*(MATCH(Feuilles,Feuilles,0)<=$P$3),COUNTIF(INDIRECT("'"&Feuilles&"'!"&"D"&ROW()),H$4))) -> 0 | I14: =SUM(IF((MATCH(Feuilles,Feuilles,0)>=$O$3)*(MATCH(Feuilles,Feuilles,0)<=$P$3),COUNTIF(INDIRECT("'"&Feuilles&"'!"&"D"&ROW()),I$4))) -> 0 | J14: =SUM(IF((MATCH(Feuilles,Feuilles,0)>=$O$3)*(MATCH(Feuilles,Feuilles,0)<=$P$3),COUNTIF(INDIRECT("'"&Feuilles&"'!"&"D"&ROW()),J$4))) -> 1 | K14: =SUM(IF((MATCH(Feuilles,Feuilles,0)>=$O$3)*(MATCH(Feuilles,Feuilles,0)<=$P$3),COUNTIF(INDIRECT("'"&Feuilles&"'!"&"D"&ROW()),K$4))) -> 0 | L14: =SUM(IF((MATCH(Feuilles,Feuilles,0)>=$O$3)*(MATCH(Feuilles,Feuilles,0)<=$P$3),COUNTIF(INDIRECT("'"&Feuilles&"'!"&"D"&ROW()),L$4))) -> 1 | M14: =SUM(IF((MATCH(Feuilles,Feuilles,0)>=$O$3)*(MATCH(Feuilles,Feuilles,0)<=$P$3),COUNTIF(INDIRECT("'"&Feuilles&"'!"&"D"&ROW()),M$4))) -> 0 | N14: =SUM(IF((MATCH(Feuilles,Feuilles,0)>=$O$3)*(MATCH(Feuilles,Feuilles,0)<=$P$3),COUNTIF(INDIRECT("'"&Feuilles&"'!"&"D"&ROW()),N$4))) -> 2
B15: Daniel RICCIARDO | C15: =SUM('Melbourne:Abu Dabi'!F20) -> 22 | D15: =IF(C15="",0,(RANK(C15,$C$5:$C$24)))+COUNTIF(C$5:C15,C15)-1 -> 11
B16: Lance STROLL | C16: =SUM('Melbourne:Abu Dabi'!F15) -> 18 | D16: =IF(C16="",0,(RANK(C16,$C$5:$C$24)))+COUNTIF(C$5:C16,C16)-1 -> 12
B17: Kevin MAGNUSSEN | C17: =SUM('Melbourne:Abu Dabi'!F27) -> 18 | D17: =IF(C17="",0,(RANK(C17,$C$5:$C$24)))+COUNTIF(C$5:C17,C17)-1 -> 13
B18: Nico HULKENBERG | C18: =SUM('Melbourne:Abu Dabi'!F21) -> 17 | D18: =IF(C18="",0,(RANK(C18,$C$5:$C$24)))+COUNTIF(C$5:C18,C18)-1 -> 14
B19: Alexander ALBON | C19: =SUM('Melbourne:Abu Dabi'!F24) -> 16 | D19: =IF(C19="",0,(RANK(C19,$C$5:$C$24)))+COUNTIF(C$5:C19,C19)-1 -> 15
B20: Sergio PEREZ | C20: =SUM('Melbourne:Abu Dabi'!F14) -> 13 | D20: =IF(C20="",0,(RANK(C20,$C$5:$C$24)))+COUNTIF(C$5:C20,C20)-1 -> 16
B21: Romain GROSJEAN | C21: =SUM('Melbourne:Abu Dabi'!F26) -> 8 | D21: =IF(C21="",0,(RANK(C21,$C$5:$C$24)))+COUNTIF(C$5:C21,C21)-1 -> 17
B22: Antonio GIOVANIZZI | C22: =SUM('Melbourne:Abu Dabi'!F33) -> 1 | D22: =IF(C22="",0,(RANK(C22,$C$5:$C$24)))+COUNTIF(C$5:C22,C22)-1 -> 18
B23: Robert KUBICA | C23: =SUM('Melbourne:Abu Dabi'!F18) -> 1 | D23: =IF(C23="",0,(RANK(C23,$C$5:$C$24)))+COUNTIF(C$5:C23,C23)-1 -> 19
B24: George RUSSEL | C24: =SUM('Melbourne:Abu Dabi'!F17) -> 0 | D24: =IF(C24="",0,(RANK(C24,$C$5:$C$24)))+COUNTIF(C$5:C24,C24)-1 -> 20
E78: =C78-D78 -> 0

Sheet Melbourne
A1: AUSTRALIE - 17 MARS 2019
A3: PILOTES | B3: ECURIES | C3: VOITURES | D3: Finish | E3: Pt tour | F3: Points | I3: CLASSEMENT
H4: =IF(F4="","",(RANK(F4,F4:F23))) ->  | I4: ÉCURIES | J4: POINTS | K4: RANG
A5: HAMILTON Lewis | B5: MERCEDES | D5: 2 | F5: =IFERROR(CHOOSE(D5,25,18,15,12,10,8,6,4,2,1)+(E5=1),0) -> 18 | H5: =COUNTIF(D5:D34,"OUT") -> 3 | I5: MERCEDES | J5: =SUM(F5:F7) -> 44 | K5: =IF(J5="","",(RANK(J5,J5:J14))) -> 1
A6: BOTTAS Valterri | D6: 1 | E6: 1 | F6: =IFERROR(CHOOSE(D6,25,18,15,12,10,8,6,4,2,1)+(E6=1),0) -> 26 | I6: FERRARI | J6: =SUM(F8:F10) -> 22 | K6: =IF(J6="","",(RANK(J6,J5:J14))) -> 2
F7: =IFERROR(CHOOSE(D7,25,18,15,12,10,8,6,4,2,1)+(E7=1),"") ->  | I7: RED BULL | J7: =SUM(F11:F13) -> 15 | K7: =IF(J7="","",(RANK(J7,J5:J14))) -> 3
A8: VETTEL Sebastian | B8: FERRARI | D8: 4 | F8: =IFERROR(CHOOSE(D8,25,18,15,12,10,8,6,4,2,1)+(E8=1),0) -> 12 | I8: RACING POINT | J8: =SUM(F14:F16) -> 2 | K8: =IF(J8="","",(RANK(J8,J5:J14))) -> 7
A9: LECLERC Charles | D9: 5 | F9: =IFERROR(CHOOSE(D9,25,18,15,12,10,8,6,4,2,1)+(E9=1),0) -> 10 | I9: WILLIAMS | J9: =SUM(F17:F19) -> 0 | K9: =IF(J9="","",(RANK(J9,J5:J14))) -> 9
F10: =IFERROR(CHOOSE(D10,25,18,15,12,10,8,6,4,2,1)+(E10=1),"") ->  | I10: RENAULT | J10: =SUM(F20:F22) -> 6 | K10: =IF(J10="","",(RANK(J10,J5:J14))) -> 5
A11: VERSTAPPEN Max | B11: RED BULL | D11: 3 | F11: =IFERROR(CHOOSE(D11,25,18,15,12,10,8,6,4,2,1)+(E11=1),0) -> 15 | I11: TORO ROSSO | J11: =SUM(F23:F25) -> 1 | K11: =IF(J11="","",(RANK(J11,J5:J14))) -> 8
A12: GASLY Pierre | D12: 11 | F12: =IFERROR(CHOOSE(D12,25,18,15,12,10,8,6,4,2,1)+(E12=1),0) -> 0 | I12: HASS | J12: =SUM(F26:F28) -> 8 | K12: =IF(J12="","",(RANK(J12,J5:J14))) -> 4
F13: =IFERROR(CHOOSE(D13,25,18,15,12,10,8,6,4,2,1)+(E13=1),"") ->  | I13: Mc LAREN | J13: =SUM(F29:F31) -> 0 | K13: =IF(J13="","",(RANK(J13,J5:J14))) -> 9
A14: PEREZ Sergio | B14: RACING POINT | D14: 13 | F14: =IFERROR(CHOOSE(D14,25,18,15,12,10,8,6,4,2,1)+(E14=1),0) -> 0 | I14: ALFA ROMÉO | J14: =SUM(F32:F34) -> 4 | K14: =IF(J14="","",(RANK(J14,J5:J14))) -> 6
A15: STROLL Lance | D15: 9 | F15: =IFERROR(CHOOSE(D15,25,18,15,12,10,8,6,4,2,1)+(E15=1),0) -> 2
F16: =IFERROR(CHOOSE(D16,25,18,15,12,10,8,6,4,2,1)+(E16=1),"") -> 
A17: RUSSELL George | B17: WILLIAMS | D17: 16 | F17: =IFERROR(CHOOSE(D17,25,18,15,12,10,8,6,4,2,1)+(E17=1),0) -> 0
A18: KUBICA Robert | D18: 17 | F18: =IFERROR(CHOOSE(D18,25,18,15,12,10,8,6,4,2,1)+(E18=1),0) -> 0
F19: =IFERROR(CHOOSE(D19,25,18,15,12,10,8,6,4,2,1)+(E19=1),"") -> 
A20: RICCIARDO Daniel | B20: RENAULT | D20: OUT | F20: =IFERROR(CHOOSE(D20,25,18,15,12,10,8,6,4,2,1)+(E20=1),0) -> 0
A21: HULKENBERG Nico | D21: 7 | F21: =IFERROR(CHOOSE(D21,25,18,15,12,10,8,6,4,2,1)+(E21=1),0) -> 6
F22: =IFERROR(CHOOSE(D22,25,18,15,12,10,8,6,4,2,1)+(E22=1),"") -> 
A23: KVYAT Daniil | B23: TORO ROSSO | D23: 10 | F23: =IFERROR(CHOOSE(D23,25,18,15,12,10,8,6,4,2,1)+(E23=1),0) -> 1
A24: ALBON Alexander | D24: 14 | F24: =IFERROR(CHOOSE(D24,25,18,15,12,10,8,6,4,2,1)+(E24=1),0) -> 0
F25: =IFERROR(CHOOSE(D25,25,18,15,12,10,8,6,4,2,1)+(E25=1),"") -> 
A26: GROSJEAN Romain | B26: HAAS | D26: OUT | F26: =IFERROR(CHOOSE(D26,25,18,15,12,10,8,6,4,2,1)+(E26=1),0) -> 0
A27: MAGNUSSEN Kevin | D27: 6 | F27: =IFERROR(CHOOSE(D27,25,18,15,12,10,8,6,4,2,1)+(E27=1),0) -> 8
F28: =IFERROR(CHOOSE(D28,25,18,15,12,10,8,6,4,2,1)+(E28=1),"") -> 
A29: NORRIS Lando | B29: McLAREN | D29: 12 | F29: =IFERROR(CHOOSE(D29,25,18,15,12,10,8,6,4,2,1)+(E29=1),0) -> 0
A30: SAINZ.Jr Carlos | D30: OUT | F30: =IFERROR(CHOOSE(D30,25,18,15,12,10,8,6,4,2,1)+(E30=1),0) -> 0
F31: =IFERROR(CHOOSE(D31,25,18,15,12,10,8,6,4,2,1)+(E31=1),"") -> 
A32: RAÏKKÖNEN Kimi | B32: ALFA ROMEO | D32: 8 | F32: =IFERROR(CHOOSE(D32,25,18,15,12,10,8,6,4,2,1)+(E32=1),0) -> 4
A33: GIOVANIZZI Antonio | D33: 15 | F33: =IFERROR(CHOOSE(D33,25,18,15,12,10,8,6,4,2,1)+(E33=1),0) -> 0
F34: =IFERROR(CHOOSE(D34,25,18,15,12,10,8,6,4,2,1)+(E34=1),"") -> 

Sheet Bahrein
A1: BAHREÏN - 31 MARS 2019
A3: PILOTES | B3: ECURIES | C3: VOITURES | D3: Finish | E3: Pt tour | F3: Points | H3: CLASSEMENT
G4: =IF(F4="","",(RANK(F4,F4:F23))) ->  | H4: ÉCURIES | I4: POINTS | J4: RANG
A5: HAMILTON Lewis | B5: MERCEDES | D5: 1 | F5: =IFERROR(CHOOSE(D5,25,18,15,12,10,8,6,4,2,1)+(E5=1),0) -> 25 | H5: MERCEDES | I5: =SUM(F5:F7) -> 43 | J5: =IF(I5="","",(RANK(I5,I5:I14))) -> 1 | K5: =I5+Melbourne!J5 -> 87
A6: BOTTAS Valterri | D6: 2 | F6: =IFERROR(CHOOSE(D6,25,18,15,12,10,8,6,4,2,1)+(E6=1),0) -> 18 | H6: FERRARI | I6: =SUM(F8:F10) -> 26 | J6: =IF(I6="","",(RANK(I6,I5:I14))) -> 2 | K6: =I6+Melbourne!J6 -> 48
H7: RED BULL | I7: =SUM(F11:F13) -> 16 | J7: =IF(I7="","",(RANK(I7,I5:I14))) -> 3 | K7: =I7+Melbourne!J7 -> 31
A8: VETTEL Sebastian | B8: FERRARI | D8: 5 | F8: =IFERROR(CHOOSE(D8,25,18,15,12,10,8,6,4,2,1)+(E8=1),0) -> 10 | H8: RACING POINT | I8: =SUM(F14:F16) -> 1 | J8: =IF(I8="","",(RANK(I8,I5:I14))) -> 7 | K8: =I8+Melbourne!J8 -> 3
A9: LECLERC Charles | D9: 3 | E9: 1 | F9: =IFERROR(CHOOSE(D9,25,18,15,12,10,8,6,4,2,1)+(E9=1),0) -> 16 | H9: WILLIAMS | I9: =SUM(F17:F19) -> 0 | J9: =IF(I9="","",(RANK(I9,I5:I14))) -> 8 | K9: =I9+Melbourne!J9 -> 0
F10: =IFERROR(CHOOSE(D10,25,18,15,12,10,8,6,4,2,1)+(E10=1),"") ->  | H10: RENAULT | I10: =SUM(F20:F22) -> 0 | J10: =IF(I10="","",(RANK(I10,I5:I14))) -> 8 | K10: =I10+Melbourne!J10 -> 6
A11: VERSTAPPEN Max | B11: RED BULL | D11: 4 | F11: =IFERROR(CHOOSE(D11,25,18,15,12,10,8,6,4,2,1)+(E11=1),0) -> 12 | H11: TORO ROSSO | I11: =SUM(F23:F25) -> 2 | J11: =IF(I11="","",(RANK(I11,I5:I14))) -> 6 | K11: =I11+Melbourne!J11 -> 3
A12: GASLY Pierre | D12: 8 | F12: =IFERROR(CHOOSE(D12,25,18,15,12,10,8,6,4,2,1)+(E12=1),0) -> 4 | H12: HASS | I12: =SUM(F26:F28) -> 0 | J12: =IF(I12="","",(RANK(I12,I5:I14))) -> 8 | K12: =I12+Melbourne!J12 -> 8
H13: Mc LAREN | I13: =SUM(F29:F31) -> 8 | J13: =IF(I13="","",(RANK(I13,I5:I14))) -> 4 | K13: =I13+Melbourne!J13 -> 8
A14: PEREZ Sergio | B14: RACING POINT | D14: 10 | F14: =IFERROR(CHOOSE(D14,25,18,15,12,10,8,6,4,2,1)+(E14=1),0) -> 1 | H14: ALFA ROMÉO | I14: =SUM(F32:F34) -> 6 | J14: =IF(I14="","",(RANK(I14,I5:I14))) -> 5 | K14: =I14+Melbourne!J14 -> 10
A15: STROLL Lance | D15: 14 | F15: =IFERROR(CHOOSE(D15,25,18,15,12,10,8,6,4,2,1)+(E15=1),0) -> 0
A17: RUSSELL George | B17: WILLIAMS | D17: 15 | F17: =IFERROR(CHOOSE(D17,25,18,15,12,10,8,6,4,2,1)+(E17=1),0) -> 0
A18: KUBICA Robert | D18: 16 | F18: =IFERROR(CHOOSE(D18,25,18,15,12,10,8,6,4,2,1)+(E18=1),0) -> 0
A20: RICCIARDO Daniel | B20: RENAULT | D20: OUT | F20: =IFERROR(CHOOSE(D20,25,18,15,12,10,8,6,4,2,1)+(E20=1),0) -> 0
A21: HULKENBERG Nico | D21: OUT | F21: =IFERROR(CHOOSE(D21,25,18,15,12,10,8,6,4,2,1)+(E21=1),0) -> 0
A23: KVYAT Daniil | B23: TORO ROSSO | D23: 12 | F23: =IFERROR(CHOOSE(D23,25,18,15,12,10,8,6,4,2,1)+(E23=1),0) -> 0
A24: ALBON Alexander | D24: 9 | F24: =IFERROR(CHOOSE(D24,25,18,15,12,10,8,6,4,2,1)+(E24=1),0) -> 2
A26: GROSJEAN Romain | B26: HAAS | D26: OUT | F26: =IFERROR(CHOOSE(D26,25,18,15,12,10,8,6,4,2,1)+(E26=1),0) -> 0
A27: MAGNUSSEN Kevin | D27: 13 | F27: =IFERROR(CHOOSE(D27,25,18,15,12,10,8,6,4,2,1)+(E27=1),0) -> 0
A29: NORRIS Lando | B29: McLAREN | D29: 6 | F29: =IFERROR(CHOOSE(D29,25,18,15,12,10,8,6,4,2,1)+(E29=1),0) -> 8
A30: SAINZ.Jr Carlos | D30: OUT | F30: =IFERROR(CHOOSE(D30,25,18,15,12,10,8,6,4,2,1)+(E30=1),0) -> 0
A32: RAÏKKÖNEN Kimi | B32: ALFA ROMEO | D32: 7 | F32: =IFERROR(CHOOSE(D32,25,18,15,12,10,8,6,4,2,1)+(E32=1),0) -> 6
A33: GIOVANIZZI Antonio | D33: 11 | F33: =IFERROR(CHOOSE(D33,25,18,15,12,10,8,6,4,2,1)+(E33=1),0) -> 0

Sheet Chine
A1: CHINE - 14 AVRIL 2019
A3: PILOTES | B3: ECURIES | C3: VOITURES | D3: Finish | E3: Pt tour | F3: Points | H3: CLASSEMENT
G4: =IF(F4="","",(RANK(F4,F4:F23))) ->  | H4: ÉCURIES | I4: POINTS | J4: RANG
A5: HAMILTON Lewis | B5: MERCEDES | D5: 1 | F5: =IFERROR(CHOOSE(D5,25,18,15,12,10,8,6,4,2,1)+(E5=1),0) -> 25 | H5: MERCEDES | I5: =SUM(F5:F7) -> 43 | J5: =IF(I5="","",(RANK(I5,I5:I14))) -> 1 | K5: =I5+Bahrein!K5 -> 130
A6: BOTTAS Valterri | D6: 2 | F6: =IFERROR(CHOOSE(D6,25,18,15,12,10,8,6,4,2,1)+(E6=1),0) -> 18 | H6: FERRARI | I6: =SUM(F8:F10) -> 25 | J6: =IF(I6="","",(RANK(I6,I5:I14))) -> 2 | K6: =I6+Bahrein!K6 -> 73
F7: 0 | H7: RED BULL | I7: =SUM(F11:F13) -> 21 | J7: =IF(I7="","",(RANK(I7,I5:I14))) -> 3 | K7: =I7+Bahrein!K7 -> 52
A8: VETTEL Sebastian | B8: FERRARI | D8: 3 | F8: 15 | H8: RACING POINT | I8: =SUM(F14:F16) -> 4 | J8: =IF(I8="","",(RANK(I8,I5:I14))) -> 5 | K8: =I8+Bahrein!K8 -> 7
A9: LECLERC Charles | D9: 5 | F9: 10 | H9: WILLIAMS | I9: =SUM(F17:F19) -> 0 | J9: =IF(I9="","",(RANK(I9,I5:I14))) -> 8 | K9: =I9+Bahrein!K9 -> 0
F10: 0 | H10: RENAULT | I10: =SUM(F20:F22) -> 6 | J10: =IF(I10="","",(RANK(I10,I5:I14))) -> 4 | K10: =I10+Bahrein!K10 -> 12
A11: VERSTAPPEN Max | B11: RED BULL | D11: 4 | F11: 12 | H11: TORO ROSSO | I11: =SUM(F23:F25) -> 1 | J11: =IF(I11="","",(RANK(I11,I5:I14))) -> 7 | K11: =I11+Bahrein!K11 -> 4
A12: GASLY Pierre | D12: 6 | E12: 1 | F12: 9 | H12: HASS | I12: =SUM(F26:F28) -> 0 | J12: =IF(I12="","",(RANK(I12,I5:I14))) -> 8 | K12: =I12+Bahrein!K12 -> 8
F13: 0 | H13: Mc LAREN | I13: =SUM(F29:F31) -> 0 | J13: =IF(I13="","",(RANK(I13,I5:I14))) -> 8 | K13: =I13+Bahrein!K13 -> 8
A14: PEREZ Sergio | B14: RACING POINT | D14: 8 | F14: 4 | H14: ALFA ROMÉO | I14: =SUM(F32:F34) -> 2 | J14: =IF(I14="","",(RANK(I14,I5:I14))) -> 6 | K14: =I14+Bahrein!K14 -> 12
A15: STROLL Lance | D15: 12 | F15: 0
F16: 0
A17: RUSSELL George | B17: WILLIAMS | D17: 16 | F17: 0
A18: KUBICA Robert | D18: 17 | F18: 0
F19: 0
A20: RICCIARDO Daniel | B20: RENAULT | D20: 7 | F20: 6
A21: HULKENBERG Nico | D21: OUT | F21: 0
F22: 0
A23: KVYAT Daniil | B23: TORO ROSSO | D23: OUT | F23: 0
A24: ALBON Alexander | D24: 10 | F24: 1
F25: 0
A26: GROSJEAN Romain | B26: HAAS | D26: 11 | F26: 0
A27: MAGNUSSEN Kevin | D27: 13 | F27: 0
F28: 0
A29: NORRIS Lando | B29: McLAREN | D29: OUT | F29: 0
A30: SAINZ.Jr Carlos | D30: 14 | F30: 0
F31: 0
A32: RAÏKKÖNEN Kimi | B32: ALFA ROMEO | D32: 9 | F32: 2
A33: GIOVANIZZI Antonio | D33: 15 | F33: 0
F34: 0

Sheet Azerbaïdjan
A1: AZERBAÏDJAN - 28 AVRIL 2019
A3: PILOTES | B3: ECURIES | C3: VOITURES | D3: Finish | E3: Pt tour | F3: Points | H3: CLASSEMENT
G4: =IF(F4="","",(RANK(F4,F4:F23))) ->  | H4: ÉCURIES | I4: POINTS | J4: RANG
A5: HAMILTON Lewis | B5: MERCEDES | D5: 2 | F5: =IFERROR(CHOOSE(D5,25,18,15,12,10,8,6,4,2,1)+(E5=1),0) -> 18 | H5: MERCEDES | I5: =SUM(F5:F7) -> 43 | J5: =IF(I5="","",(RANK(I5,I5:I14))) -> 1 | K5: =I5+Chine!K5 -> 173
A6: BOTTAS Valterri | D6: 1 | F6: =IFERROR(CHOOSE(D6,25,18,15,12,10,8,6,4,2,1)+(E6=1),0) -> 25 | H6: FERRARI | I6: =SUM(F8:F10) -> 26 | J6: =IF(I6="","",(RANK(I6,I5:I14))) -> 2 | K6: =I6+Chine!K6 -> 99
F7: =IFERROR(CHOOSE(D7,25,18,15,12,10,8,6,4,2,1)+(E7=1),"") ->  | H7: RED BULL | I7: =SUM(F11:F13) -> 12 | J7: =IF(I7="","",(RANK(I7,I5:I14))) -> 3 | K7: =I7+Chine!K7 -> 64
A8: VETTEL Sebastian | B8: FERRARI | D8: 3 | F8: 15 | H8: RACING POINT | I8: =SUM(F14:F16) -> 10 | J8: =IF(I8="","",(RANK(I8,I5:I14))) -> 4 | K8: =I8+Chine!K8 -> 17
A9: LECLERC Charles | D9: 5 | E9: 1 | F9: 11 | H9: WILLIAMS | I9: =SUM(F17:F19) -> 0 | J9: =IF(I9="","",(RANK(I9,I5:I14))) -> 7 | K9: =I9+Chine!K9 -> 0
F10: =IFERROR(CHOOSE(D10,25,18,15,12,10,8,6,4,2,1)+(E10=1),"") ->  | H10: RENAULT | I10: =SUM(F20:F22) -> 0 | J10: =IF(I10="","",(RANK(I10,I5:I14))) -> 7 | K10: =I10+Chine!K10 -> 12
A11: VERSTAPPEN Max | B11: RED BULL | D11: 4 | F11: 12 | H11: TORO ROSSO | I11: =SUM(F23:F25) -> 0 | J11: =IF(I11="","",(RANK(I11,I5:I14))) -> 7 | K11: =I11+Chine!K11 -> 4
A12: GASLY Pierre | D12: OUT | F12: 0 | H12: HASS | I12: =SUM(F26:F28) -> 0 | J12: =IF(I12="","",(RANK(I12,I5:I14))) -> 7 | K12: =I12+Chine!K12 -> 8
F13: =IFERROR(CHOOSE(D13,25,18,15,12,10,8,6,4,2,1)+(E13=1),"") ->  | H13: Mc LAREN | I13: =SUM(F29:F31) -> 10 | J13: =IF(I13="","",(RANK(I13,I5:I14))) -> 4 | K13: =I13+Chine!K13 -> 18
A14: PEREZ Sergio | B14: RACING POINT | D14: 6 | F14: 8 | H14: ALFA ROMÉO | I14: =SUM(F32:F34) -> 1 | J14: =IF(I14="","",(RANK(I14,I5:I14))) -> 6 | K14: =I14+Chine!K14 -> 13
A15: STROLL Lance | D15: 9 | F15: 2
F16: =IFERROR(CHOOSE(D16,25,18,15,12,10,8,6,4,2,1)+(E16=1),"") -> 
A17: RUSSELL George | B17: WILLIAMS | D17: 15 | F17: 0
A18: KUBICA Robert | D18: 16 | F18: 0
F19: =IFERROR(CHOOSE(D19,25,18,15,12,10,8,6,4,2,1)+(E19=1),"") -> 
A20: RICCIARDO Daniel | B20: RENAULT | D20: OUT | F20: 0
A21: HULKENBERG Nico | D21: 14 | F21: 0
F22: =IFERROR(CHOOSE(D22,25,18,15,12,10,8,6,4,2,1)+(E22=1),"") -> 
A23: KVYAT Daniil | B23: TORO ROSSO | D23: OUT | F23: 0
A24: ALBON Alexander | D24: 11 | F24: 0
F25: =IFERROR(CHOOSE(D25,25,18,15,12,10,8,6,4,2,1)+(E25=1),"") -> 
A26: GROSJEAN Romain | B26: HAAS | D26: OUT | F26: 0
A27: MAGNUSSEN Kevin | D27: 13 | F27: 0
F28: =IFERROR(CHOOSE(D28,25,18,15,12,10,8,6,4,2,1)+(E28=1),"") -> 
A29: NORRIS Lando | B29: McLAREN | D29: 8 | F29: 4
A30: SAINZ.Jr Carlos | D30: 7 | F30: 6
F31: =IFERROR(CHOOSE(D31,25,18,15,12,10,8,6,4,2,1)+(E31=1),"") -> 
A32: RAÏKKÖNEN Kimi | B32: ALFA ROMEO | D32: 10 | F32: 1
A33: GIOVANIZZI Antonio | D33: 12 | F33: 0
F34: =IFERROR(CHOOSE(D34,25,18,15,12,10,8,6,4,2,1)+(E34=1),"") -> 

Sheet Espagne
A1: ESPAGNE - 12 MAI 2019
A3: PILOTES | B3: ECURIES | C3: VOITURES | D3: Finish | E3: Pt tour | F3: Points | H3: CLASSEMENT
G4: =IF(F4="","",(RANK(F4,F4:F23))) ->  | H4: ÉCURIES | I4: POINTS | J4: RANG
A5: HAMILTON Lewis | B5: MERCEDES | D5: 1 | E5: 1 | F5: =IFERROR(CHOOSE(D5,25,18,15,12,10,8,6,4,2,1)+(E5=1),0) -> 26 | H5: MERCEDES | I5: =SUM(F5:F7) -> 44 | J5: =IF(I5="","",(RANK(I5,I5:I14))) -> 1 | K5: =I5+Azerbaïdjan!K5 -> 217
A6: BOTTAS Valterri | D6: 2 | F6: =IFERROR(CHOOSE(D6,25,18,15,12,10,8,6,4,2,1)+(E6=1),0) -> 18 | H6: FERRARI | I6: =SUM(F8:F10) -> 22 | J6: =IF(I6="","",(RANK(I6,I5:I14))) -> 3 | K6: =I6+Azerbaïdjan!K6 -> 121
F7: =IFERROR(CHOOSE(D7,25,18,15,12,10,8,6,4,2,1)+(E7=1),"") ->  | H7: RED BULL | I7: =SUM(F11:F13) -> 23 | J7: =IF(I7="","",(RANK(I7,I5:I14))) -> 2 | K7: =I7+Azerbaïdjan!K7 -> 87
A8: VETTEL Sebastian | B8: FERRARI | D8: 4 | F8: 12 | H8: RACING POINT | I8: =SUM(F14:F16) -> 0 | J8: =IF(I8="","",(RANK(I8,I5:I14))) -> 7 | K8: =I8+Azerbaïdjan!K8 -> 17
A9: LECLERC Charles | D9: 5 | F9: 10 | H9: WILLIAMS | I9: =SUM(F17:F19) -> 0 | J9: =IF(I9="","",(RANK(I9,I5:I14))) -> 7 | K9: =I9+Azerbaïdjan!K9 -> 0
F10: =IFERROR(CHOOSE(D10,25,18,15,12,10,8,6,4,2,1)+(E10=1),"") ->  | H10: RENAULT | I10: =SUM(F20:F22) -> 0 | J10: =IF(I10="","",(RANK(I10,I5:I14))) -> 7 | K10: =I10+Azerbaïdjan!K10 -> 12
A11: VERSTAPPEN Max | B11: RED BULL | D11: 3 | F11: 15 | H11: TORO ROSSO | I11: =SUM(F23:F25) -> 2 | J11: =IF(I11="","",(RANK(I11,I5:I14))) -> 6 | K11: =I11+Azerbaïdjan!K11 -> 6
A12: GASLY Pierre | D12: 6 | F12: 8 | H12: HASS | I12: =SUM(F26:F28) -> 7 | J12: =IF(I12="","",(RANK(I12,I5:I14))) -> 4 | K12: =I12+Azerbaïdjan!K12 -> 15
F13: =IFERROR(CHOOSE(D13,25,18,15,12,10,8,6,4,2,1)+(E13=1),0) -> 0 | H13: Mc LAREN | I13: =SUM(F29:F31) -> 4 | J13: =IF(I13="","",(RANK(I13,I5:I14))) -> 5 | K13: =I13+Azerbaïdjan!K13 -> 22
A14: PEREZ Sergio | B14: RACING POINT | D14: 15 | F14: 0 | H14: ALFA ROMÉO | I14: =SUM(F32:F34) -> 0 | J14: =IF(I14="","",(RANK(I14,I5:I14))) -> 7 | K14: =I14+Azerbaïdjan!K14 -> 13
A15: STROLL Lance | D15: OUT | F15: 0
F16: =IFERROR(CHOOSE(D16,25,18,15,12,10,8,6,4,2,1)+(E16=1),"") -> 
A17: RUSSELL George | B17: WILLIAMS | D17: 17 | F17: 0
A18: KUBICA Robert | D18: 18 | F18: 0
F19: =IFERROR(CHOOSE(D19,25,18,15,12,10,8,6,4,2,1)+(E19=1),"") -> 
A20: RICCIARDO Daniel | B20: RENAULT | D20: 12 | F20: 0
A21: HULKENBERG Nico | D21: 13 | F21: 0
F22: =IFERROR(CHOOSE(D22,25,18,15,12,10,8,6,4,2,1)+(E22=1),"") -> 
A23: KVYAT Daniil | B23: TORO ROSSO | D23: 9 | F23: 2
A24: ALBON Alexander | D24: 11 | F24: 0
F25: =IFERROR(CHOOSE(D25,25,18,15,12,10,8,6,4,2,1)+(E25=1),"") -> 
A26: GROSJEAN Romain | B26: HAAS | D26: 10 | F26: 1
A27: MAGNUSSEN Kevin | D27: 7 | F27: 6
F28: =IFERROR(CHOOSE(D28,25,18,15,12,10,8,6,4,2,1)+(E28=1),"") -> 
A29: NORRIS Lando | B29: McLAREN | D29: OUT | F29: 0
A30: SAINZ.Jr Carlos | D30: 8 | F30: 4
F31: =IFERROR(CHOOSE(D31,25,18,15,12,10,8,6,4,2,1)+(E31=1),"") -> 
A32: RAÏKKÖNEN Kimi | B32: ALFA ROMEO | D32: 14 | F32: 0
A33: GIOVANIZZI Antonio | D33: 16 | F33: 0
F34: =IFERROR(CHOOSE(D34,25,18,15,12,10,8,6,4,2,1)+(E34=1),"") -> 

Sheet Monaco
A1: MONACO - 26 MAI 2019
A3: PILOTES | B3: ECURIES | C3: VOITURES | D3: Finish | E3: Pt tour | F3: Points | H3: CLASSEMENT
G4: =IF(F4="","",(RANK(F4,F4:F23))) ->  | H4: ÉCURIES | I4: POINTS | J4: RANG
A5: HAMILTON Lewis | B5: MERCEDES | D5: 1 | F5: =IFERROR(CHOOSE(D5,25,18,15,12,10,8,6,4,2,1)+(E5=1),0) -> 25 | H5: MERCEDES | I5: =SUM(F5:F7) -> 40 | J5: =IF(I5="","",(RANK(I5,I5:I14))) -> 1 | K5: =I5+Espagne!K5 -> 257
A6: BOTTAS Valterri | D6: 3 | F6: =IFERROR(CHOOSE(D6,25,18,15,12,10,8,6,4,2,1)+(E6=1),0) -> 15 | H6: FERRARI | I6: =SUM(F8:F10) -> 18 | J6: =IF(I6="","",(RANK(I6,I5:I14))) -> 3 | K6: =I6+Espagne!K6 -> 139
F7: =IFERROR(CHOOSE(D7,25,18,15,12,10,8,6,4,2,1)+(E7=1),"") ->  | H7: RED BULL | I7: =SUM(F11:F13) -> 23 | J7: =IF(I7="","",(RANK(I7,I5:I14))) -> 2 | K7: =I7+Espagne!K7 -> 110
A8: VETTEL Sebastian | B8: FERRARI | D8: 2 | F8: 18 | H8: RACING POINT | I8: =SUM(F14:F16) -> 0 | J8: =IF(I8="","",(RANK(I8,I5:I14))) -> 8 | K8: =I8+Espagne!K8 -> 17
A9: LECLERC Charles | D9: OUT | F9: 0 | H9: WILLIAMS | I9: =SUM(F17:F19) -> 0 | J9: =IF(I9="","",(RANK(I9,I5:I14))) -> 8 | K9: =I9+Espagne!K9 -> 0
F10: =IFERROR(CHOOSE(D10,25,18,15,12,10,8,6,4,2,1)+(E10=1),"") ->  | H10: RENAULT | I10: =SUM(F20:F22) -> 2 | J10: =IF(I10="","",(RANK(I10,I5:I14))) -> 6 | K10: =I10+Espagne!K10 -> 14
A11: VERSTAPPEN Max | B11: RED BULL | D11: 4 | F11: 12 | H11: TORO ROSSO | I11: =SUM(F23:F25) -> 10 | J11: =IF(I11="","",(RANK(I11,I5:I14))) -> 4 | K11: =I11+Espagne!K11 -> 16
A12: GASLY Pierre | D12: 5 | E12: 1 | F12: 11 | H12: HASS | I12: =SUM(F26:F28) -> 1 | J12: =IF(I12="","",(RANK(I12,I5:I14))) -> 7 | K12: =I12+Espagne!K12 -> 16
F13: =IFERROR(CHOOSE(D13,25,18,15,12,10,8,6,4,2,1)+(E13=1),"") ->  | H13: Mc LAREN | I13: =SUM(F29:F31) -> 8 | J13: =IF(I13="","",(RANK(I13,I5:I14))) -> 5 | K13: =I13+Espagne!K13 -> 30
A14: PEREZ Sergio | B14: RACING POINT | D14: 12 | F14: 0 | H14: ALFA ROMÉO | I14: =SUM(F32:F34) -> 0 | J14: =IF(I14="","",(RANK(I14,I5:I14))) -> 8 | K14: =I14+Espagne!K14 -> 13
A15: STROLL Lance | D15: 16 | F15: 0
F16: =IFERROR(CHOOSE(D16,25,18,15,12,10,8,6,4,2,1)+(E16=1),"") -> 
A17: RUSSELL George | B17: WILLIAMS | D17: 15 | F17: 0
A18: KUBICA Robert | D18: 18 | F18: 0
F19: =IFERROR(CHOOSE(D19,25,18,15,12,10,8,6,4,2,1)+(E19=1),"") -> 
A20: RICCIARDO Daniel | B20: RENAULT | D20: 9 | F20: 2
A21: HULKENBERG Nico | D21: 13 | F21: 0
F22: =IFERROR(CHOOSE(D22,25,18,15,12,10,8,6,4,2,1)+(E22=1),"") -> 
A23: KVYAT Daniil | B23: TORO ROSSO | D23: 7 | F23: 6
A24: ALBON Alexander | D24: 8 | F24: 4
F25: =IFERROR(CHOOSE(D25,25,18,15,12,10,8,6,4,2,1)+(E25=1),"") -> 
A26: GROSJEAN Romain | B26: HAAS | D26: 10 | F26: 1
A27: MAGNUSSEN Kevin | D27: 14 | F27: 0
F28: =IFERROR(CHOOSE(D28,25,18,15,12,10,8,6,4,2,1)+(E28=1),"") -> 
A29: NORRIS Lando | B29: McLAREN | D29: 11 | F29: 0
A30: SAINZ.Jr Carlos | D30: 6 | F30: 8
F31: =IFERROR(CHOOSE(D31,25,18,15,12,10,8,6,4,2,1)+(E31=1),"") -> 
A32: RAÏKKÖNEN Kimi | B32: ALFA ROMEO | D32: 17 | F32: 0
A33: GIOVANIZZI Antonio | D33: 19 | F33: 0
F34: =IFERROR(CHOOSE(D34,25,18,15,12,10,8,6,4,2,1)+(E34=1),"") -> 

Sheet Canada
A1: CANADA - 17 MARS 2019
A3: PILOTES | B3: ECURIES | C3: VOITURES | D3: Finish | E3: Pt tour | F3: Points | H3: CLASSEMENT
G4: =IF(F4="","",(RANK(F4,F4:F23))) ->  | H4: ÉCURIES | I4: POINTS | J4: RANG
A5: HAMILTON Lewis | B5: MERCEDES | D5: 1 | F5: =IFERROR(CHOOSE(D5,25,18,15,12,10,8,6,4,2,1)+(E5=1),0) -> 25 | H5: MERCEDES | I5: =SUM(F5:F7) -> 38 | J5: =IF(I5="","",(RANK(I5,I5:I14))) -> 1 | K5: =I5+Monaco!K5 -> 295
A6: BOTTAS Valterri | D6: 4 | E6: 1 | F6: =IFERROR(CHOOSE(D6,25,18,15,12,10,8,6,4,2,1)+(E6=1),0) -> 13 | H6: FERRARI | I6: =SUM(F8:F10) -> 33 | J6: =IF(I6="","",(RANK(I6,I5:I14))) -> 2 | K6: =I6+Monaco!K6 -> 172
F7: =IFERROR(CHOOSE(D7,25,18,15,12,10,8,6,4,2,1)+(E7=1),"") ->  | H7: RED BULL | I7: =SUM(F11:F13) -> 14 | J7: =IF(I7="","",(RANK(I7,I5:I14))) -> 3 | K7: =I7+Monaco!K7 -> 124
A8: VETTEL Sebastian | B8: FERRARI | D8: 2 | F8: 18 | H8: RACING POINT | I8: =SUM(F14:F16) -> 2 | J8: =IF(I8="","",(RANK(I8,I5:I14))) -> 5 | K8: =I8+Monaco!K8 -> 19
A9: LECLERC Charles | D9: 3 | F9: 15 | H9: WILLIAMS | I9: =SUM(F17:F19) -> 0 | J9: =IF(I9="","",(RANK(I9,I5:I14))) -> 7 | K9: =I9+Monaco!K9 -> 0
F10: =IFERROR(CHOOSE(D10,25,18,15,12,10,8,6,4,2,1)+(E10=1),"") ->  | H10: RENAULT | I10: =SUM(F20:F22) -> 14 | J10: =IF(I10="","",(RANK(I10,I5:I14))) -> 3 | K10: =I10+Monaco!K10 -> 28
A11: VERSTAPPEN Max | B11: RED BULL | D11: 5 | F11: 10 | H11: TORO ROSSO | I11: =SUM(F23:F25) -> 1 | J11: =IF(I11="","",(RANK(I11,I5:I14))) -> 6 | K11: =I11+Monaco!K11 -> 17
A12: GASLY Pierre | D12: 8 | F12: 4 | H12: HASS | I12: =SUM(F26:F28) -> 0 | J12: =IF(I12="","",(RANK(I12,I5:I14))) -> 7 | K12: =I12+Monaco!K12 -> 16
F13: =IFERROR(CHOOSE(D13,25,18,15,12,10,8,6,4,2,1)+(E13=1),"") ->  | H13: Mc LAREN | I13: =SUM(F29:F31) -> 0 | J13: =IF(I13="","",(RANK(I13,I5:I14))) -> 7 | K13: =I13+Monaco!K13 -> 30
A14: PEREZ Sergio | B14: RACING POINT | D14: 12 | F14: 0 | H14: ALFA ROMÉO | I14: =SUM(F32:F34) -> 0 | J14: =IF(I14="","",(RANK(I14,I5:I14))) -> 7 | K14: =I14+Monaco!K14 -> 13
A15: STROLL Lance | D15: 9 | F15: 2
F16: =IFERROR(CHOOSE(D16,25,18,15,12,10,8,6,4,2,1)+(E16=1),"") -> 
A17: RUSSELL George | B17: WILLIAMS | D17: 16 | F17: 0
A18: KUBICA Robert | D18: 18 | F18: 0
F19: =IFERROR(CHOOSE(D19,25,18,15,12,10,8,6,4,2,1)+(E19=1),"") -> 
A20: RICCIARDO Daniel | B20: RENAULT | D20: 6 | F20: 8
A21: HULKENBERG Nico | D21: 7 | F21: 6
F22: =IFERROR(CHOOSE(D22,25,18,15,12,10,8,6,4,2,1)+(E22=1),"") -> 
A23: KVYAT Daniil | B23: TORO ROSSO | D23: 10 | F23: 1
A24: ALBON Alexander | D24: OUT | F24: 0
F25: =IFERROR(CHOOSE(D25,25,18,15,12,10,8,6,4,2,1)+(E25=1),"") -> 
A26: GROSJEAN Romain | B26: HAAS | D26: 14 | F26: 0
A27: MAGNUSSEN Kevin | D27: 17 | F27: 0
F28: =IFERROR(CHOOSE(D28,25,18,15,12,10,8,6,4,2,1)+(E28=1),"") -> 
A29: NORRIS Lando | B29: McLAREN | D29: OUT | F29: 0
A30: SAINZ.Jr Carlos | D30: 11 | F30: 0
F31: =IFERROR(CHOOSE(D31,25,18,15,12,10,8,6,4,2,1)+(E31=1),"") -> 
A32: RAÏKKÖNEN Kimi | B32: ALFA ROMEO | D32: 15 | F32: 0
A33: GIOVANIZZI Antonio | D33: 13 | F33: 0
F34: =IFERROR(CHOOSE(D34,25,18,15,12,10,8,6,4,2,1)+(E34=1),"") -> 

Sheet France
A1: FRANCE - 17 MARS 2019
A3: PILOTES | B3: ECURIES | C3: VOITURES | D3: Finish | E3: Pt tour | F3: Points | H3: CLASSEMENT
G4: =IF(F4="","",(RANK(F4,F4:F23))) ->  | H4: ÉCURIES | I4: POINTS | J4: RANG
A5: HAMILTON Lewis | B5: MERCEDES | D5: 1 | F5: =IFERROR(CHOOSE(D5,25,18,15,12,10,8,6,4,2,1)+(E5=1),0) -> 25 | H5: MERCEDES | I5: =SUM(F5:F7) -> 43 | J5: =IF(I5="","",(RANK(I5,I5:I14))) -> 1 | K5: =I5+Canada!K5 -> 338
A6: BOTTAS Valterri | D6: 2 | F6: =IFERROR(CHOOSE(D6,25,18,15,12,10,8,6,4,2,1)+(E6=1),0) -> 18 | H6: FERRARI | I6: =SUM(F8:F10) -> 26 | J6: =IF(I6="","",(RANK(I6,I5:I14))) -> 2 | K6: =I6+Canada!K6 -> 198
F7: =IFERROR(CHOOSE(D7,25,18,15,12,10,8,6,4,2,1)+(E7=1),"") ->  | H7: RED BULL | I7: =SUM(F11:F13) -> 13 | J7: =IF(I7="","",(RANK(I7,I5:I14))) -> 3 | K7: =I7+Canada!K7 -> 137
A8: VETTEL Sebastian | B8: FERRARI | D8: 5 | E8: 1 | F8: 11 | H8: RACING POINT | I8: =SUM(F14:F16) -> 0 | J8: =IF(I8="","",(RANK(I8,I5:I14))) -> 7 | K8: =I8+Canada!K8 -> 19
A9: LECLERC Charles | D9: 3 | F9: 15 | H9: WILLIAMS | I9: =SUM(F17:F19) -> 0 | J9: =IF(I9="","",(RANK(I9,I5:I14))) -> 7 | K9: =I9+Canada!K9 -> 0
F10: =IFERROR(CHOOSE(D10,25,18,15,12,10,8,6,4,2,1)+(E10=1),"") ->  | H10: RENAULT | I10: =SUM(F20:F22) -> 4 | J10: =IF(I10="","",(RANK(I10,I5:I14))) -> 6 | K10: =I10+Canada!K10 -> 32
A11: VERSTAPPEN Max | B11: RED BULL | D11: 4 | F11: 12 | H11: TORO ROSSO | I11: =SUM(F23:F25) -> 0 | J11: =IF(I11="","",(RANK(I11,I5:I14))) -> 7 | K11: =I11+Canada!K11 -> 17
A12: GASLY Pierre | D12: 10 | F12: 1 | H12: HASS | I12: =SUM(F26:F28) -> 0 | J12: =IF(I12="","",(RANK(I12,I5:I14))) -> 7 | K12: =I12+Canada!K12 -> 16
F13: =IFERROR(CHOOSE(D13,25,18,15,12,10,8,6,4,2,1)+(E13=1),"") ->  | H13: Mc LAREN | I13: =SUM(F29:F31) -> 10 | J13: =IF(I13="","",(RANK(I13,I5:I14))) -> 4 | K13: =I13+Canada!K13 -> 40
A14: PEREZ Sergio | B14: RACING POINT | D14: 12 | F14: 0 | H14: ALFA ROMÉO | I14: =SUM(F32:F34) -> 6 | J14: =IF(I14="","",(RANK(I14,I5:I14))) -> 5 | K14: =I14+Canada!K14 -> 19
A15: STROLL Lance | D15: 13 | F15: 0
F16: =IFERROR(CHOOSE(D16,25,18,15,12,10,8,6,4,2,1)+(E16=1),"") -> 
A17: RUSSELL George | B17: WILLIAMS | D17: 19 | F17: 0
A18: KUBICA Robert | D18: 18 | F18: 0
F19: =IFERROR(CHOOSE(D19,25,18,15,12,10,8,6,4,2,1)+(E19=1),"") -> 
A20: RICCIARDO Daniel | B20: RENAULT | D20: 11 | F20: 0
A21: HULKENBERG Nico | D21: 8 | F21: 4
F22: =IFERROR(CHOOSE(D22,25,18,15,12,10,8,6,4,2,1)+(E22=1),"") -> 
A23: KVYAT Daniil | B23: TORO ROSSO | D23: 14 | F23: 0
A24: ALBON Alexander | D24: 15 | F24: 0
F25: =IFERROR(CHOOSE(D25,25,18,15,12,10,8,6,4,2,1)+(E25=1),"") -> 
A26: GROSJEAN Romain | B26: HAAS | D26: OUT | F26: 0
A27: MAGNUSSEN Kevin | D27: 17 | F27: 0
F28: =IFERROR(CHOOSE(D28,25,18,15,12,10,8,6,4,2,1)+(E28=1),"") -> 
A29: NORRIS Lando | B29: McLAREN | D29: 9 | F29: 2
A30: SAINZ.Jr Carlos | D30: 6 | F30: 8
F31: =IFERROR(CHOOSE(D31,25,18,15,12,10,8,6,4,2,1)+(E31=1),"") -> 
A32: RAÏKKÖNEN Kimi | B32: ALFA ROMEO | D32: 7 | F32: 6
A33: GIOVANIZZI Antonio | D33: 16 | F33: 0
F34: =IFERROR(CHOOSE(D34,25,18,15,12,10,8,6,4,2,1)+(E34=1),"") -> 

Sheet Autriche
A1: AUTRICHE - 17 MARS 2019
A3: PILOTES | B3: ECURIES | C3: VOITURES | D3: Finish | E3: Pt tour | F3: Points | H3: CLASSEMENT
G4: =IF(F4="","",(RANK(F4,F4:F23))) ->  | H4: ÉCURIES | I4: POINTS | J4: RANG
A5: HAMILTON Lewis | B5: MERCEDES | D5: 5 | F5: =IFERROR(CHOOSE(D5,25,18,15,12,10,8,6,4,2,1)+(E5=1),0) -> 10 | H5: MERCEDES | I5: =SUM(F5:F7) -> 25 | J5: =IF(I5="","",(RANK(I5,I5:I14))) -> 3 | K5: =I5+France!K5 -> 363
A6: BOTTAS Valterri | D6: 3 | F6: =IFERROR(CHOOSE(D6,25,18,15,12,10,8,6,4,2,1)+(E6=1),0) -> 15 | H6: FERRARI | I6: =SUM(F8:F10) -> 30 | J6: =IF(I6="","",(RANK(I6,I5:I14))) -> 2 | K6: =I6+France!K6 -> 228
F7: =IFERROR(CHOOSE(D7,25,18,15,12,10,8,6,4,2,1)+(E7=1),"") ->  | H7: RED BULL | I7: =SUM(F11:F13) -> 32 | J7: =IF(I7="","",(RANK(I7,I5:I14))) -> 1 | K7: =I7+France!K7 -> 169
A8: VETTEL Sebastian | B8: FERRARI | D8: 4 | F8: 12 | H8: RACING POINT | I8: =SUM(F14:F16) -> 0 | J8: =IF(I8="","",(RANK(I8,I5:I14))) -> 6 | K8: =I8+France!K8 -> 19
A9: LECLERC Charles | D9: 2 | F9: 18 | H9: WILLIAMS | I9: =SUM(F17:F19) -> 0 | J9: =IF(I9="","",(RANK(I9,I5:I14))) -> 6 | K9: =I9+France!K9 -> 0
F10: =IFERROR(CHOOSE(D10,25,18,15,12,10,8,6,4,2,1)+(E10=1),"") ->  | H10: RENAULT | I10: =SUM(F20:F22) -> 0 | J10: =IF(I10="","",(RANK(I10,I5:I14))) -> 6 | K10: =I10+France!K10 -> 32
A11: VERSTAPPEN Max | B11: RED BULL | D11: 1 | E11: 1 | F11: 26 | H11: TORO ROSSO | I11: =SUM(F23:F25) -> 0 | J11: =IF(I11="","",(RANK(I11,I5:I14))) -> 6 | K11: =I11+France!K11 -> 17
A12: GASLY Pierre | D12: 7 | F12: 6 | H12: HASS | I12: =SUM(F26:F28) -> 0 | J12: =IF(I12="","",(RANK(I12,I5:I14))) -> 6 | K12: =I12+France!K12 -> 16
F13: =IFERROR(CHOOSE(D13,25,18,15,12,10,8,6,4,2,1)+(E13=1),"") ->  | H13: Mc LAREN | I13: =SUM(F29:F31) -> 12 | J13: =IF(I13="","",(RANK(I13,I5:I14))) -> 4 | K13: =I13+France!K13 -> 52
A14: PEREZ Sergio | B14: RACING POINT | D14: 11 | F14: 0 | H14: ALFA ROMÉO | I14: =SUM(F32:F34) -> 3 | J14: =IF(I14="","",(RANK(I14,I5:I14))) -> 5 | K14: =I14+France!K14 -> 22
A15: STROLL Lance | D15: 14 | F15: 0
F16: =IFERROR(CHOOSE(D16,25,18,15,12,10,8,6,4,2,1)+(E16=1),"") -> 
A17: RUSSELL George | B17: WILLIAMS | D17: 18 | F17: 0
A18: KUBICA Robert | D18: 20 | F18: 0
F19: =IFERROR(CHOOSE(D19,25,18,15,12,10,8,6,4,2,1)+(E19=1),"") -> 
A20: RICCIARDO Daniel | B20: RENAULT | D20: 12 | F20: 0
A21: HULKENBERG Nico | D21: 13 | F21: 0
F22: =IFERROR(CHOOSE(D22,25,18,15,12,10,8,6,4,2,1)+(E22=1),"") -> 
A23: KVYAT Daniil | B23: TORO ROSSO | D23: 17 | F23: 0
A24: ALBON Alexander | D24: 15 | F24: 0
F25: =IFERROR(CHOOSE(D25,25,18,15,12,10,8,6,4,2,1)+(E25=1),"") -> 
A26: GROSJEAN Romain | B26: HAAS | D26: 16 | F26: 0
A27: MAGNUSSEN Kevin | D27: 19 | F27: 0
F28: =IFERROR(CHOOSE(D28,25,18,15,12,10,8,6,4,2,1)+(E28=1),"") -> 
A29: NORRIS Lando | B29: McLAREN | D29: 6 | F29: 8
A30: SAINZ.Jr Carlos | D30: 8 | F30: 4
F31: =IFERROR(CHOOSE(D31,25,18,15,12,10,8,6,4,2,1)+(E31=1),"") -> 
A32: RAÏKKÖNEN Kimi | B32: ALFA ROMEO | D32: 9 | F32: 2
A33: GIOVANIZZI Antonio | D33: 10 | F33: 1
F34: =IFERROR(CHOOSE(D34,25,18,15,12,10,8,6,4,2,1)+(E34=1),"") -> 

Sheet GB
A1: ANGLETERRE - 17 MARS 2019
A3: PILOTES | B3: ECURIES | C3: VOITURES | D3: Finish | E3: Pt tour | F3: Points | H3: CLASSEMENT
G4: =IF(F4="","",(RANK(F4,F4:F23))) ->  | H4: ÉCURIES | I4: POINTS | J4: RANG
A5: HAMILTON Lewis | B5: MERCEDES | D5: 1 | E5: 1 | F5: =IFERROR(CHOOSE(D5,25,18,15,12,10,8,6,4,2,1)+(E5=1),0) -> 26 | H5: MERCEDES | I5: =SUM(F5:F7) -> 44 | J5: =IF(I5="","",(RANK(I5,I5:I14))) -> 1 | K5: =I5+Autriche!K5 -> 407
A6: BOTTAS Valterri | D6: 2 | F6: =IFERROR(CHOOSE(D6,25,18,15,12,10,8,6,4,2,1)+(E6=1),0) -> 18 | H6: FERRARI | I6: =SUM(F8:F10) -> 15 | J6: =IF(I6="","",(RANK(I6,I5:I14))) -> 3 | K6: =I6+Autriche!K6 -> 243
F7: =IFERROR(CHOOSE(D7,25,18,15,12,10,8,6,4,2,1)+(E7=1),"") ->  | H7: RED BULL | I7: =SUM(F11:F13) -> 22 | J7: =IF(I7="","",(RANK(I7,I5:I14))) -> 2 | K7: =I7+Autriche!K7 -> 191
A8: VETTEL Sebastian | B8: FERRARI | D8: 16 | F8: 0 | H8: RACING POINT | I8: =SUM(F14:F16) -> 0 | J8: =IF(I8="","",(RANK(I8,I5:I14))) -> 8 | K8: =I8+Autriche!K8 -> 19
A9: LECLERC Charles | D9: 3 | F9: 15 | H9: WILLIAMS | I9: =SUM(F17:F19) -> 0 | J9: =IF(I9="","",(RANK(I9,I5:I14))) -> 8 | K9: =I9+Autriche!K9 -> 0
F10: =IFERROR(CHOOSE(D10,25,18,15,12,10,8,6,4,2,1)+(E10=1),"") ->  | H10: RENAULT | I10: =SUM(F20:F22) -> 7 | J10: =IF(I10="","",(RANK(I10,I5:I14))) -> 5 | K10: =I10+Autriche!K10 -> 39
A11: VERSTAPPEN Max | B11: RED BULL | D11: 5 | F11: 10 | H11: TORO ROSSO | I11: =SUM(F23:F25) -> 2 | J11: =IF(I11="","",(RANK(I11,I5:I14))) -> 7 | K11: =I11+Autriche!K11 -> 19
A12: GASLY Pierre | D12: 4 | F12: 12 | H12: HASS | I12: =SUM(F26:F28) -> 0 | J12: =IF(I12="","",(RANK(I12,I5:I14))) -> 8 | K12: =I12+Autriche!K12 -> 16
F13: =IFERROR(CHOOSE(D13,25,18,15,12,10,8,6,4,2,1)+(E13=1),"") ->  | H13: Mc LAREN | I13: =SUM(F29:F31) -> 8 | J13: =IF(I13="","",(RANK(I13,I5:I14))) -> 4 | K13: =I13+Autriche!K13 -> 60
A14: PEREZ Sergio | B14: RACING POINT | D14: 17 | F14: 0 | H14: ALFA ROMÉO | I14: =SUM(F32:F34) -> 4 | J14: =IF(I14="","",(RANK(I14,I5:I14))) -> 6 | K14: =I14+Autriche!K14 -> 26
A15: STROLL Lance | D15: 13 | F15: 0
F16: =IFERROR(CHOOSE(D16,25,18,15,12,10,8,6,4,2,1)+(E16=1),"") -> 
A17: RUSSELL George | B17: WILLIAMS | D17: 14 | F17: 0
A18: KUBICA Robert | D18: 15 | F18: 0
F19: =IFERROR(CHOOSE(D19,25,18,15,12,10,8,6,4,2,1)+(E19=1),"") -> 
A20: RICCIARDO Daniel | B20: RENAULT | D20: 7 | F20: 6
A21: HULKENBERG Nico | D21: 10 | F21: 1
F22: =IFERROR(CHOOSE(D22,25,18,15,12,10,8,6,4,2,1)+(E22=1),"") -> 
A23: KVYAT Daniil | B23: TORO ROSSO | D23: 9 | F23: 2
A24: ALBON Alexander | D24: 12 | F24: 0
F25: =IFERROR(CHOOSE(D25,25,18,15,12,10,8,6,4,2,1)+(E25=1),"") -> 
A26: GROSJEAN Romain | B26: HAAS | D26: OUT | F26: 0
A27: MAGNUSSEN Kevin | D27: OUT | F27: 0
F28: =IFERROR(CHOOSE(D28,25,18,15,12,10,8,6,4,2,1)+(E28=1),"") -> 
A29: NORRIS Lando | B29: McLAREN | D29: 11 | F29: 0
A30: SAINZ.Jr Carlos | D30: 6 | F30: 8
F31: =IFERROR(CHOOSE(D31,25,18,15,12,10,8,6,4,2,1)+(E31=1),"") -> 
A32: RAÏKKÖNEN Kimi | B32: ALFA ROMEO | D32: 8 | F32: 4
A33: GIOVANIZZI Antonio | D33: OUT | F33: 0
F34: =IFERROR(CHOOSE(D34,25,18,15,12,10,8,6,4,2,1)+(E34=1),"") -> 

Sheet Allemagne
A1: ALLEMAGNE - 28 JUILLET 2019
A3: PILOTES | B3: ECURIES | C3: VOITURES | D3: Finish | E3: Pt tour | F3: Points | H3: CLASSEMENT
G4: =IF(F4="","",(RANK(F4,F4:F23))) ->  | H4: ÉCURIES | I4: POINTS | J4: RANG
A5: HAMILTON Lewis | B5: MERCEDES | D5: 9 | F5: =IFERROR(CHOOSE(D5,25,18,15,12,10,8,6,4,2,1)+(E5=1),0) -> 2 | H5: MERCEDES | I5: =SUM(F5:F7) -> 2 | J5: =IF(I5="","",(RANK(I5,I5:I14))) -> 7 | K5: =I5+GB!K5 -> 409
A6: BOTTAS Valterri | D6: OUT | F6: =IFERROR(CHOOSE(D6,25,18,15,12,10,8,6,4,2,1)+(E6=1),0) -> 0 | H6: FERRARI | I6: =SUM(F8:F10) -> 18 | J6: =IF(I6="","",(RANK(I6,I5:I14))) -> 3 | K6: =I6+GB!K6 -> 261
F7: =IFERROR(CHOOSE(D7,25,18,15,12,10,8,6,4,2,1)+(E7=1),"") ->  | H7: RED BULL | I7: =SUM(F11:F13) -> 26 | J7: =IF(I7="","",(RANK(I7,I5:I14))) -> 1 | K7: =I7+GB!K7 -> 217
A8: VETTEL Sebastian | B8: FERRARI | D8: 2 | F8: 18 | H8: RACING POINT | I8: =SUM(F14:F16) -> 12 | J8: =IF(I8="","",(RANK(I8,I5:I14))) -> 4 | K8: =I8+GB!K8 -> 31
A9: LECLERC Charles | D9: OUT | F9: 0 | H9: WILLIAMS | I9: =SUM(F17:F19) -> 1 | J9: =IF(I9="","",(RANK(I9,I5:I14))) -> 8 | K9: =I9+GB!K9 -> 1
F10: =IFERROR(CHOOSE(D10,25,18,15,12,10,8,6,4,2,1)+(E10=1),"") ->  | H10: RENAULT | I10: =SUM(F20:F22) -> 0 | J10: =IF(I10="","",(RANK(I10,I5:I14))) -> 9 | K10: =I10+GB!K10 -> 39
A11: VERSTAPPEN Max | B11: RED BULL | D11: 1 | E11: 1 | F11: 26 | H11: TORO ROSSO | I11: =SUM(F23:F25) -> 23 | J11: =IF(I11="","",(RANK(I11,I5:I14))) -> 2 | K11: =I11+GB!K11 -> 42
A12: GASLY Pierre | D12: OUT | F12: 0 | H12: HASS | I12: =SUM(F26:F28) -> 10 | J12: =IF(I12="","",(RANK(I12,I5:I14))) -> 5 | K12: =I12+GB!K12 -> 26
F13: =IFERROR(CHOOSE(D13,25,18,15,12,10,8,6,4,2,1)+(E13=1),"") ->  | H13: Mc LAREN | I13: =SUM(F29:F31) -> 10 | J13: =IF(I13="","",(RANK(I13,I5:I14))) -> 5 | K13: =I13+GB!K13 -> 70
A14: PEREZ Sergio | B14: RACING POINT | D14: OUT | F14: 0 | H14: ALFA ROMÉO | I14: =SUM(F32:F34) -> 0 | J14: =IF(I14="","",(RANK(I14,I5:I14))) -> 9 | K14: =I14+GB!K14 -> 26
A15: STROLL Lance | D15: 4 | F15: 12
F16: =IFERROR(CHOOSE(D16,25,18,15,12,10,8,6,4,2,1)+(E16=1),"") -> 
A17: RUSSELL George | B17: WILLIAMS | D17: 11 | F17: 0
A18: KUBICA Robert | D18: 10 | F18: 1
F19: =IFERROR(CHOOSE(D19,25,18,15,12,10,8,6,4,2,1)+(E19=1),"") -> 
A20: RICCIARDO Daniel | B20: RENAULT | D20: OUT | F20: 0
A21: HULKENBERG Nico | D21: OUT | F21: 0
F22: =IFERROR(CHOOSE(D22,25,18,15,12,10,8,6,4,2,1)+(E22=1),"") -> 
A23: KVYAT Daniil | B23: TORO ROSSO | D23: 3 | F23: 15
A24: ALBON Alexander | D24: 6 | F24: 8
F25: =IFERROR(CHOOSE(D25,25,18,15,12,10,8,6,4,2,1)+(E25=1),"") -> 
A26: GROSJEAN Romain | B26: HAAS | D26: 7 | F26: 6
A27: MAGNUSSEN Kevin | D27: 8 | F27: 4
F28: =IFERROR(CHOOSE(D28,25,18,15,12,10,8,6,4,2,1)+(E28=1),"") -> 
A29: NORRIS Lando | B29: McLAREN | D29: OUT | F29: 0
A30: SAINZ.Jr Carlos | D30: 5 | F30: 10
F31: =IFERROR(CHOOSE(D31,25,18,15,12,10,8,6,4,2,1)+(E31=1),"") -> 
A32: RAÏKKÖNEN Kimi | B32: ALFA ROMEO | D32: 12 | F32: 0
A33: GIOVANIZZI Antonio | D33: 13 | F33: 0
F34: =IFERROR(CHOOSE(D34,25,18,15,12,10,8,6,4,2,1)+(E34=1),"") -> 

Sheet Hongrie
A1: HONGRIE - 14 AOUT 2019
A3: PILOTES | B3: ECURIES | C3: VOITURES | D3: Finish | E3: Pt tour | F3: Points | H3: CLASSEMENT
G4: =IF(F4="","",(RANK(F4,F4:F23))) ->  | H4: ÉCURIES | I4: POINTS | J4: RANG
A5: HAMILTON Lewis | B5: MERCEDES | D5: 1 | F5: =IFERROR(CHOOSE(D5,25,18,15,12,10,8,6,4,2,1)+(E5=1),0) -> 25 | H5: MERCEDES | I5: =SUM(F5:F7) -> 29 | J5: =IF(I5="","",(RANK(I5,I5:I14))) -> 1 | K5: =I5+Allemagne!K5 -> 438
A6: BOTTAS Valterri | D6: 8 | F6: =IFERROR(CHOOSE(D6,25,18,15,12,10,8,6,4,2,1)+(E6=1),0) -> 4 | H6: FERRARI | I6: =SUM(F8:F10) -> 27 | J6: =IF(I6="","",(RANK(I6,I5:I14))) -> 2 | K6: =I6+Allemagne!K6 -> 288
F7: =IFERROR(CHOOSE(D7,25,18,15,12,10,8,6,4,2,1)+(E7=1),"") ->  | H7: RED BULL | I7: =SUM(F11:F13) -> 27 | J7: =IF(I7="","",(RANK(I7,I5:I14))) -> 2 | K7: =I7+Allemagne!K7 -> 244
A8: VETTEL Sebastian | B8: FERRARI | D8: 3 | F8: 15 | H8: RACING POINT | I8: =SUM(F14:F16) -> 0 | J8: =IF(I8="","",(RANK(I8,I5:I14))) -> 7 | K8: =I8+Allemagne!K8 -> 31
A9: LECLERC Charles | D9: 4 | F9: 12 | H9: WILLIAMS | I9: =SUM(F17:F19) -> 0 | J9: =IF(I9="","",(RANK(I9,I5:I14))) -> 7 | K9: =I9+Allemagne!K9 -> 1
F10: =IFERROR(CHOOSE(D10,25,18,15,12,10,8,6,4,2,1)+(E10=1),"") ->  | H10: RENAULT | I10: =SUM(F20:F22) -> 0 | J10: =IF(I10="","",(RANK(I10,I5:I14))) -> 7 | K10: =I10+Allemagne!K10 -> 39
A11: VERSTAPPEN Max | B11: RED BULL | D11: 2 | E11: 1 | F11: 19 | H11: TORO ROSSO | I11: =SUM(F23:F25) -> 1 | J11: =IF(I11="","",(RANK(I11,I5:I14))) -> 6 | K11: =I11+Allemagne!K11 -> 43
A12: GASLY Pierre | D12: 6 | F12: 8 | H12: HASS | I12: =SUM(F26:F28) -> 0 | J12: =IF(I12="","",(RANK(I12,I5:I14))) -> 7 | K12: =I12+Allemagne!K12 -> 26
F13: =IFERROR(CHOOSE(D13,25,18,15,12,10,8,6,4,2,1)+(E13=1),"") ->  | H13: Mc LAREN | I13: =SUM(F29:F31) -> 12 | J13: =IF(I13="","",(RANK(I13,I5:I14))) -> 4 | K13: =I13+Allemagne!K13 -> 82
A14: PEREZ Sergio | B14: RACING POINT | D14: 11 | F14: 0 | H14: ALFA ROMÉO | I14: =SUM(F32:F34) -> 6 | J14: =IF(I14="","",(RANK(I14,I5:I14))) -> 5 | K14: =I14+Allemagne!K14 -> 32
A15: STROLL Lance | D15: 17 | F15: 0
F16: =IFERROR(CHOOSE(D16,25,18,15,12,10,8,6,4,2,1)+(E16=1),"") -> 
A17: RUSSELL George | B17: WILLIAMS | D17: 16 | F17: 0
A18: KUBICA Robert | D18: 19 | F18: 0
F19: =IFERROR(CHOOSE(D19,25,18,15,12,10,8,6,4,2,1)+(E19=1),"") -> 
A20: RICCIARDO Daniel | B20: RENAULT | D20: 14 | F20: 0
A21: HULKENBERG Nico | D21: 12 | F21: 0
F22: =IFERROR(CHOOSE(D22,25,18,15,12,10,8,6,4,2,1)+(E22=1),"") -> 
A23: KVYAT Daniil | B23: TORO ROSSO | D23: 15 | F23: 0
A24: ALBON Alexander | D24: 10 | F24: 1
F25: =IFERROR(CHOOSE(D25,25,18,15,12,10,8,6,4,2,1)+(E25=1),"") -> 
A26: GROSJEAN Romain | B26: HAAS | D26: OUT | F26: 0
A27: MAGNUSSEN Kevin | D27: 13 | F27: 0
F28: =IFERROR(CHOOSE(D28,25,18,15,12,10,8,6,4,2,1)+(E28=1),"") -> 
A29: NORRIS Lando | B29: McLAREN | D29: 9 | F29: 2
A30: SAINZ.Jr Carlos | D30: 5 | F30: 10
F31: =IFERROR(CHOOSE(D31,25,18,15,12,10,8,6,4,2,1)+(E31=1),"") -> 
A32: RAÏKKÖNEN Kimi | B32: ALFA ROMEO | D32: 7 | F32: 6
A33: GIOVANIZZI Antonio | D33: 18 | F33: 0
F34: =IFERROR(CHOOSE(D34,25,18,15,12,10,8,6,4,2,1)+(E34=1),"") -> 

Sheet Belgique
A1: BELGIQUE - 17 MARS 2019
A3: PILOTES | B3: ECURIES | C3: VOITURES | D3: Finish | E3: Pt tour | F3: Points | H3: CLASSEMENT
G4: =IF(F4="","",(RANK(F4,F4:F23))) ->  | H4: ÉCURIES | I4: POINTS | J4: RANG
A5: HAMILTON Lewis | B5: MERCEDES | F5: =IFERROR(CHOOSE(D5,25,18,15,12,10,8,6,4,2,1)+(E5=1),0) -> 0 | H5: MERCEDES | I5: =SUM(F5:F7) -> 0 | J5: =IF(I5="","",(RANK(I5,I5:I14))) -> 1 | K5: =I5+Hongrie!K5 -> 438
A6: BOTTAS Valterri | F6: =IFERROR(CHOOSE(D6,25,18,15,12,10,8,6,4,2,1)+(E6=1),0) -> 0 | H6: FERRARI | I6: =SUM(F8:F10) -> 0 | J6: =IF(I6="","",(RANK(I6,I5:I14))) -> 1 | K6: =I6+Hongrie!K6 -> 288
F7: =IFERROR(CHOOSE(D7,25,18,15,12,10,8,6,4,2,1)+(E7=1),"") ->  | H7: RED BULL | I7: =SUM(F11:F13) -> 0 | J7: =IF(I7="","",(RANK(I7,I5:I14))) -> 1 | K7: =I7+Hongrie!K7 -> 244
A8: VETTEL Sebastian | B8: FERRARI | F8: 0 | H8: RACING POINT | I8: =SUM(F14:F16) -> 0 | J8: =IF(I8="","",(RANK(I8,I5:I14))) -> 1 | K8: =I8+Hongrie!K8 -> 31
A9: LECLERC Charles | F9: 0 | H9: WILLIAMS | I9: =SUM(F17:F19) -> 0 | J9: =IF(I9="","",(RANK(I9,I5:I14))) -> 1 | K9: =I9+Hongrie!K9 -> 1
F10: =IFERROR(CHOOSE(D10,25,18,15,12,10,8,6,4,2,1)+(E10=1),"") ->  | H10: RENAULT | I10: =SUM(F20:F22) -> 0 | J10: =IF(I10="","",(RANK(I10,I5:I14))) -> 1 | K10: =I10+Hongrie!K10 -> 39
A11: VERSTAPPEN Max | B11: RED BULL | F11: 0 | H11: TORO ROSSO | I11: =SUM(F23:F25) -> 0 | J11: =IF(I11="","",(RANK(I11,I5:I14))) -> 1 | K11: =I11+Hongrie!K11 -> 43
A12: GASLY Pierre | F12: 0 | H12: HASS | I12: =SUM(F26:F28) -> 0 | J12: =IF(I12="","",(RANK(I12,I5:I14))) -> 1 | K12: =I12+Hongrie!K12 -> 26
F13: =IFERROR(CHOOSE(D13,25,18,15,12,10,8,6,4,2,1)+(E13=1),"") ->  | H13: Mc LAREN | I13: =SUM(F29:F31) -> 0 | J13: =IF(I13="","",(RANK(I13,I5:I14))) -> 1 | K13: =I13+Hongrie!K13 -> 82
A14: PEREZ Sergio | B14: RACING POINT | F14: 0 | H14: ALFA ROMÉO | I14: =SUM(F32:F34) -> 0 | J14: =IF(I14="","",(RANK(I14,I5:I14))) -> 1 | K14: =I14+Hongrie!K14 -> 32
A15: STROLL Lance | F15: 0
F16: =IFERROR(CHOOSE(D16,25,18,15,12,10,8,6,4,2,1)+(E16=1),"") -> 
A17: RUSSELL George | B17: WILLIAMS | F17: 0
A18: KUBICA Robert | F18: 0
F19: =IFERROR(CHOOSE(D19,25,18,15,12,10,8,6,4,2,1)+(E19=1),"") -> 
A20: RICCIARDO Daniel | B20: RENAULT | F20: 0
A21: HULKENBERG Nico | F21: 0
F22: =IFERROR(CHOOSE(D22,25,18,15,12,10,8,6,4,2,1)+(E22=1),"") -> 
A23: KVYAT Daniil | B23: TORO ROSSO | F23: 0
A24: ALBON Alexander | F24: 0
F25: =IFERROR(CHOOSE(D25,25,18,15,12,10,8,6,4,2,1)+(E25=1),"") -> 
A26: GROSJEAN Romain | B26: HAAS | F26: 0
A27: MAGNUSSEN Kevin | F27: 0
F28: =IFERROR(CHOOSE(D28,25,18,15,12,10,8,6,4,2,1)+(E28=1),"") -> 
A29: NORRIS Lando | B29: McLAREN | F29: 0
A30: SAINZ.Jr Carlos | F30: 0
F31: =IFERROR(CHOOSE(D31,25,18,15,12,10,8,6,4,2,1)+(E31=1),"") -> 
A32: RAÏKKÖNEN Kimi | B32: ALFA ROMEO | F32: 0
A33: GIOVANIZZI Antonio | F33: 0

Sheet Italie
A1: ITALIE - 17 MARS 2019
A3: PILOTES | B3: ECURIES | C3: VOITURES | D3: Finish | E3: Pt tour | F3: Points | H3: CLASSEMENT
G4: =IF(F4="","",(RANK(F4,F4:F23))) ->  | H4: ÉCURIES | I4: POINTS | J4: RANG
A5: HAMILTON Lewis | B5: MERCEDES | F5: =IFERROR(CHOOSE(D5,25,18,15,12,10,8,6,4,2,1)+(E5=1),0) -> 0 | H5: MERCEDES | I5: =SUM(F5:F7) -> 0 | J5: =IF(I5="","",(RANK(I5,I5:I14))) -> 1
A6: BOTTAS Valterri | F6: =IFERROR(CHOOSE(D6,25,18,15,12,10,8,6,4,2,1)+(E6=1),0) -> 0 | H6: FERRARI | I6: =SUM(F8:F10) -> 0 | J6: =IF(I6="","",(RANK(I6,I5:I14))) -> 1
F7: =IFERROR(CHOOSE(D7,25,18,15,12,10,8,6,4,2,1)+(E7=1),"") ->  | H7: RED BULL | I7: =SUM(F11:F13) -> 0 | J7: =IF(I7="","",(RANK(I7,I5:I14))) -> 1
A8: VETTEL Sebastian | B8: FERRARI | F8: 0 | H8: RACING POINT | I8: =SUM(F14:F16) -> 0 | J8: =IF(I8="","",(RANK(I8,I5:I14))) -> 1
A9: LECLERC Charles | F9: 0 | H9: WILLIAMS | I9: =SUM(F17:F19) -> 0 | J9: =IF(I9="","",(RANK(I9,I5:I14))) -> 1
F10: =IFERROR(CHOOSE(D10,25,18,15,12,10,8,6,4,2,1)+(E10=1),"") ->  | H10: RENAULT | I10: =SUM(F20:F22) -> 0 | J10: =IF(I10="","",(RANK(I10,I5:I14))) -> 1
A11: VERSTAPPEN Max | B11: RED BULL | F11: 0 | H11: TORO ROSSO | I11: =SUM(F23:F25) -> 0 | J11: =IF(I11="","",(RANK(I11,I5:I14))) -> 1
A12: GASLY Pierre | F12: 0 | H12: HASS | I12: =SUM(F26:F28) -> 0 | J12: =IF(I12="","",(RANK(I12,I5:I14))) -> 1
F13: =IFERROR(CHOOSE(D13,25,18,15,12,10,8,6,4,2,1)+(E13=1),"") ->  | H13: Mc LAREN | I13: =SUM(F29:F31) -> 0 | J13: =IF(I13="","",(RANK(I13,I5:I14))) -> 1
A14: PEREZ Sergio | B14: RACING POINT | F14: 0 | H14: ALFA ROMÉO | I14: =SUM(F32:F34) -> 0 | J14: =IF(I14="","",(RANK(I14,I5:I14))) -> 1
A15: STROLL Lance | F15: 0
F16: =IFERROR(CHOOSE(D16,25,18,15,12,10,8,6,4,2,1)+(E16=1),"") -> 
A17: RUSSELL George | B17: WILLIAMS | F17: 0
A18: KUBICA Robert | F18: 0
F19: =IFERROR(CHOOSE(D19,25,18,15,12,10,8,6,4,2,1)+(E19=1),"") -> 
A20: RICCIARDO Daniel | B20: RENAULT | F20: 0
A21: HULKENBERG Nico | F21: 0
F22: =IFERROR(CHOOSE(D22,25,18,15,12,10,8,6,4,2,1)+(E22=1),"") -> 
A23: KVYAT Daniil | B23: TORO ROSSO | F23: =IFERROR(CHOOSE(D23,25,18,15,12,10,8,6,4,2,1)+(E23=1),"") -> 
A24: ALBON Alexander | F24: 0
F25: =IFERROR(CHOOSE(D25,25,18,15,12,10,8,6,4,2,1)+(E25=1),"") -> 
A26: GROSJEAN Romain | B26: HAAS | F26: 0
A27: MAGNUSSEN Kevin | F27: 0
F28: =IFERROR(CHOOSE(D28,25,18,15,12,10,8,6,4,2,1)+(E28=1),"") -> 
A29: NORRIS Lando | B29: McLAREN | F29: 0
A30: SAINZ.Jr Carlos | F30: 0
F31: =IFERROR(CHOOSE(D31,25,18,15,12,10,8,6,4,2,1)+(E31=1),"") -> 
A32: RAÏKKÖNEN Kimi | B32: ALFA ROMEO | F32: 0
A33: GIOVANIZZI Antonio | F33: 0
F34: =IFERROR(CHOOSE(D34,25,18,15,12,10,8,6,4,2,1)+(E34=1),"") -> 

Sheet Singapour
A1: SINGAPOUR- 17 MARS 2019
A3: PILOTES | B3: ECURIES | C3: VOITURES | D3: Finish | E3: Pt tour | F3: Points | H3: CLASSEMENT
G4: =IF(F4="","",(RANK(F4,F4:F23))) ->  | H4: ÉCURIES | I4: POINTS | J4: RANG
A5: HAMILTON Lewis | B5: MERCEDES | F5: =IFERROR(CHOOSE(D5,25,18,15,12,10,8,6,4,2,1)+(E5=1),0) -> 0 | H5: MERCEDES | I5: =SUM(F5:F7) -> 0 | J5: =IF(I5="","",(RANK(I5,I5:I14))) -> 1
A6: BOTTAS Valterri | F6: =IFERROR(CHOOSE(D6,25,18,15,12,10,8,6,4,2,1)+(E6=1),0) -> 0 | H6: FERRARI | I6: =SUM(F8:F10) -> 0 | J6: =IF(I6="","",(RANK(I6,I5:I14))) -> 1
F7: =IFERROR(CHOOSE(D7,25,18,15,12,10,8,6,4,2,1)+(E7=1),"") ->  | H7: RED BULL | I7: =SUM(F11:F13) -> 0 | J7: =IF(I7="","",(RANK(I7,I5:I14))) -> 1
A8: VETTEL Sebastian | B8: FERRARI | F8: 0 | H8: RACING POINT | I8: =SUM(F14:F16) -> 0 | J8: =IF(I8="","",(RANK(I8,I5:I14))) -> 1
A9: LECLERC Charles | F9: 0 | H9: WILLIAMS | I9: =SUM(F17:F19) -> 0 | J9: =IF(I9="","",(RANK(I9,I5:I14))) -> 1
F10: =IFERROR(CHOOSE(D10,25,18,15,12,10,8,6,4,2,1)+(E10=1),"") ->  | H10: RENAULT | I10: =SUM(F20:F22) -> 0 | J10: =IF(I10="","",(RANK(I10,I5:I14))) -> 1
A11: VERSTAPPEN Max | B11: RED BULL | F11: 0 | H11: TORO ROSSO | I11: =SUM(F23:F25) -> 0 | J11: =IF(I11="","",(RANK(I11,I5:I14))) -> 1
A12: GASLY Pierre | F12: 0 | H12: HASS | I12: =SUM(F26:F28) -> 0 | J12: =IF(I12="","",(RANK(I12,I5:I14))) -> 1
F13: =IFERROR(CHOOSE(D13,25,18,15,12,10,8,6,4,2,1)+(E13=1),"") ->  | H13: Mc LAREN | I13: =SUM(F29:F31) -> 0 | J13: =IF(I13="","",(RANK(I13,I5:I14))) -> 1
A14: PEREZ Sergio | B14: RACING POINT | F14: 0 | H14: ALFA ROMÉO | I14: =SUM(F32:F34) -> 0 | J14: =IF(I14="","",(RANK(I14,I5:I14))) -> 1
A15: STROLL Lance | F15: 0
F16: =IFERROR(CHOOSE(D16,25,18,15,12,10,8,6,4,2,1)+(E16=1),"") -> 
A17: RUSSELL George | B17: WILLIAMS | F17: 0
A18: KUBICA Robert | F18: 0
F19: =IFERROR(CHOOSE(D19,25,18,15,12,10,8,6,4,2,1)+(E19=1),"") -> 
A20: RICCIARDO Daniel | B20: RENAULT | F20: 0
A21: HULKENBERG Nico | F21: 0
F22: =IFERROR(CHOOSE(D22,25,18,15,12,10,8,6,4,2,1)+(E22=1),"") -> 
A23: KVYAT Daniil | B23: TORO ROSSO | F23: 0
A24: ALBON Alexander | F24: 0
F25: =IFERROR(CHOOSE(D25,25,18,15,12,10,8,6,4,2,1)+(E25=1),"") -> 
A26: GROSJEAN Romain | B26: HAAS | F26: 0
A27: MAGNUSSEN Kevin | F27: 0
F28: =IFERROR(CHOOSE(D28,25,18,15,12,10,8,6,4,2,1)+(E28=1),"") -> 
A29: NORRIS Lando | B29: McLAREN | F29: 0
A30: SAINZ.Jr Carlos | F30: 0
F31: =IFERROR(CHOOSE(D31,25,18,15,12,10,8,6,4,2,1)+(E31=1),"") -> 
A32: RAÏKKÖNEN Kimi | B32: ALFA ROMEO | F32: 0
A33: GIOVANIZZI Antonio | F33: 0
F34: =IFERROR(CHOOSE(D34,25,18,15,12,10,8,6,4,2,1)+(E34=1),"") -> 

Sheet Russie
A1: RUSSIE- 17 MARS 2019
A3: PILOTES | B3: ECURIES | C3: VOITURES | D3: Finish | E3: Pt tour | F3: Points | H3: CLASSEMENT
G4: =IF(F4="","",(RANK(F4,F4:F23))) ->  | H4: ÉCURIES | I4: POINTS | J4: RANG
A5: HAMILTON Lewis | B5: MERCEDES | F5: =IFERROR(CHOOSE(D5,25,18,15,12,10,8,6,4,2,1)+(E5=1),0) -> 0 | H5: MERCEDES | I5: =SUM(F5:F7) -> 0 | J5: =IF(I5="","",(RANK(I5,I5:I14))) -> 1
A6: BOTTAS Valterri | F6: =IFERROR(CHOOSE(D6,25,18,15,12,10,8,6,4,2,1)+(E6=1),0) -> 0 | H6: FERRARI | I6: =SUM(F8:F10) -> 0 | J6: =IF(I6="","",(RANK(I6,I5:I14))) -> 1
F7: =IFERROR(CHOOSE(D7,25,18,15,12,10,8,6,4,2,1)+(E7=1),"") ->  | H7: RED BULL | I7: =SUM(F11:F13) -> 0 | J7: =IF(I7="","",(RANK(I7,I5:I14))) -> 1
A8: VETTEL Sebastian | B8: FERRARI | F8: 0 | H8: RACING POINT | I8: =SUM(F14:F16) -> 0 | J8: =IF(I8="","",(RANK(I8,I5:I14))) -> 1
A9: LECLERC Charles | F9: 0 | H9: WILLIAMS | I9: =SUM(F17:F19) -> 0 | J9: =IF(I9="","",(RANK(I9,I5:I14))) -> 1
F10: =IFERROR(CHOOSE(D10,25,18,15,12,10,8,6,4,2,1)+(E10=1),"") ->  | H10: RENAULT | I10: =SUM(F20:F22) -> 0 | J10: =IF(I10="","",(RANK(I10,I5:I14))) -> 1
A11: VERSTAPPEN Max | B11: RED BULL | F11: 0 | H11: TORO ROSSO | I11: =SUM(F23:F25) -> 0 | J11: =IF(I11="","",(RANK(I11,I5:I14))) -> 1
A12: GASLY Pierre | F12: 0 | H12: HASS | I12: =SUM(F26:F28) -> 0 | J12: =IF(I12="","",(RANK(I12,I5:I14))) -> 1
F13: =IFERROR(CHOOSE(D13,25,18,15,12,10,8,6,4,2,1)+(E13=1),"") ->  | H13: Mc LAREN | I13: =SUM(F29:F31) -> 0 | J13: =IF(I13="","",(RANK(I13,I5:I14))) -> 1
A14: PEREZ Sergio | B14: RACING POINT | F14: 0 | H14: ALFA ROMÉO | I14: =SUM(F32:F34) -> 0 | J14: =IF(I14="","",(RANK(I14,I5:I14))) -> 1
A15: STROLL Lance | F15: 0
F16: =IFERROR(CHOOSE(D16,25,18,15,12,10,8,6,4,2,1)+(E16=1),"") -> 
A17: RUSSELL George | B17: WILLIAMS | F17: 0
A18: KUBICA Robert | F18: 0
F19: =IFERROR(CHOOSE(D19,25,18,15,12,10,8,6,4,2,1)+(E19=1),"") -> 
A20: RICCIARDO Daniel | B20: RENAULT | F20: 0
A21: HULKENBERG Nico | F21: 0
F22: =IFERROR(CHOOSE(D22,25,18,15,12,10,8,6,4,2,1)+(E22=1),"") -> 
A23: KVYAT Daniil | B23: TORO ROSSO | F23: 0
A24: ALBON Alexander | F24: 0
F25: =IFERROR(CHOOSE(D25,25,18,15,12,10,8,6,4,2,1)+(E25=1),"") -> 
A26: GROSJEAN Romain | B26: HAAS | F26: 0
A27: MAGNUSSEN Kevin | F27: 0
F28: =IFERROR(CHOOSE(D28,25,18,15,12,10,8,6,4,2,1)+(E28=1),"") -> 
A29: NORRIS Lando | B29: McLAREN | F29: 0
A30: SAINZ.Jr Carlos | F30: 0
F31: =IFERROR(CHOOSE(D31,25,18,15,12,10,8,6,4,2,1)+(E31=1),"") -> 
A32: RAÏKKÖNEN Kimi | B32: ALFA ROMEO | F32: 0
A33: GIOVANIZZI Antonio | F33: 0
F34: =IFERROR(CHOOSE(D34,25,18,15,12,10,8,6,4,2,1)+(E34=1),"") -> 

Sheet Japon
A1: JAPON - 17 MARS 2019
A3: PILOTES | B3: ECURIES | C3: VOITURES | D3: Finish | E3: Pt tour | F3: Points | H3: CLASSEMENT
G4: =IF(F4="","",(RANK(F4,F4:F23))) ->  | H4: ÉCURIES | I4: POINTS | J4: RANG
A5: HAMILTON Lewis | B5: MERCEDES | F5: =IFERROR(CHOOSE(D5,25,18,15,12,10,8,6,4,2,1)+(E5=1),0) -> 0 | H5: MERCEDES | I5: =SUM(F5:F7) -> 0 | J5: =IF(I5="","",(RANK(I5,I5:I14))) -> 1
A6: BOTTAS Valterri | F6: =IFERROR(CHOOSE(D6,25,18,15,12,10,8,6,4,2,1)+(E6=1),0) -> 0 | H6: FERRARI | I6: =SUM(F8:F10) -> 0 | J6: =IF(I6="","",(RANK(I6,I5:I14))) -> 1
F7: =IFERROR(CHOOSE(D7,25,18,15,12,10,8,6,4,2,1)+(E7=1),"") ->  | H7: RED BULL | I7: =SUM(F11:F13) -> 0 | J7: =IF(I7="","",(RANK(I7,I5:I14))) -> 1
A8: VETTEL Sebastian | B8: FERRARI | F8: 0 | H8: RACING POINT | I8: =SUM(F14:F16) -> 0 | J8: =IF(I8="","",(RANK(I8,I5:I14))) -> 1
A9: LECLERC Charles | F9: 0 | H9: WILLIAMS | I9: =SUM(F17:F19) -> 0 | J9: =IF(I9="","",(RANK(I9,I5:I14))) -> 1
F10: =IFERROR(CHOOSE(D10,25,18,15,12,10,8,6,4,2,1)+(E10=1),"") ->  | H10: RENAULT | I10: =SUM(F20:F22) -> 0 | J10: =IF(I10="","",(RANK(I10,I5:I14))) -> 1
A11: VERSTAPPEN Max | B11: RED BULL | F11: 0 | H11: TORO ROSSO | I11: =SUM(F23:F25) -> 0 | J11: =IF(I11="","",(RANK(I11,I5:I14))) -> 1
A12: GASLY Pierre | F12: 0 | H12: HASS | I12: =SUM(F26:F28) -> 0 | J12: =IF(I12="","",(RANK(I12,I5:I14))) -> 1
F13: =IFERROR(CHOOSE(D13,25,18,15,12,10,8,6,4,2,1)+(E13=1),"") ->  | H13: Mc LAREN | I13: =SUM(F29:F31) -> 0 | J13: =IF(I13="","",(RANK(I13,I5:I14))) -> 1
A14: PEREZ Sergio | B14: RACING POINT | F14: 0 | H14: ALFA ROMÉO | I14: =SUM(F32:F34) -> 0 | J14: =IF(I14="","",(RANK(I14,I5:I14))) -> 1
A15: STROLL Lance | F15: 0
F16: =IFERROR(CHOOSE(D16,25,18,15,12,10,8,6,4,2,1)+(E16=1),"") -> 
A17: RUSSELL George | B17: WILLIAMS | F17: 0
A18: KUBICA Robert | F18: 0
F19: =IFERROR(CHOOSE(D19,25,18,15,12,10,8,6,4,2,1)+(E19=1),"") -> 
A20: RICCIARDO Daniel | B20: RENAULT | F20: 0
A21: HULKENBERG Nico | F21: 0
F22: =IFERROR(CHOOSE(D22,25,18,15,12,10,8,6,4,2,1)+(E22=1),"") -> 
A23: KVYAT Daniil | B23: TORO ROSSO | F23: 0
A24: ALBON Alexander | F24: 0
F25: =IFERROR(CHOOSE(D25,25,18,15,12,10,8,6,4,2,1)+(E25=1),"") -> 
A26: GROSJEAN Romain | B26: HAAS | F26: 0
A27: MAGNUSSEN Kevin | F27: 0
F28: =IFERROR(CHOOSE(D28,25,18,15,12,10,8,6,4,2,1)+(E28=1),"") -> 
A29: NORRIS Lando | B29: McLAREN | F29: 0
A30: SAINZ.Jr Carlos | F30: 0
F31: =IFERROR(CHOOSE(D31,25,18,15,12,10,8,6,4,2,1)+(E31=1),"") -> 
A32: RAÏKKÖNEN Kimi | B32: ALFA ROMEO | F32: 0
A33: GIOVANIZZI Antonio | F33: 0
F34: =IFERROR(CHOOSE(D34,25,18,15,12,10,8,6,4,2,1)+(E34=1),"") -> 

Sheet Mexique
A1: MEXIQUE - 17 MARS 2019
A3: PILOTES | B3: ECURIES | C3: VOITURES | D3: Finish | E3: Pt tour | F3: Points | H3: CLASSEMENT
G4: =IF(F4="","",(RANK(F4,F4:F23))) ->  | H4: ÉCURIES | I4: POINTS | J4: RANG
A5: HAMILTON Lewis | B5: MERCEDES | F5: =IFERROR(CHOOSE(D5,25,18,15,12,10,8,6,4,2,1)+(E5=1),0) -> 0 | H5: MERCEDES | I5: =SUM(F5:F7) -> 0 | J5: =IF(I5="","",(RANK(I5,I5:I14))) -> 1
A6: BOTTAS Valterri | F6: =IFERROR(CHOOSE(D6,25,18,15,12,10,8,6,4,2,1)+(E6=1),0) -> 0 | H6: FERRARI | I6: =SUM(F8:F10) -> 0 | J6: =IF(I6="","",(RANK(I6,I5:I14))) -> 1
F7: =IFERROR(CHOOSE(D7,25,18,15,12,10,8,6,4,2,1)+(E7=1),"") ->  | H7: RED BULL | I7: =SUM(F11:F13) -> 0 | J7: =IF(I7="","",(RANK(I7,I5:I14))) -> 1
A8: VETTEL Sebastian | B8: FERRARI | F8: 0 | H8: RACING POINT | I8: =SUM(F14:F16) -> 0 | J8: =IF(I8="","",(RANK(I8,I5:I14))) -> 1
A9: LECLERC Charles | F9: 0 | H9: WILLIAMS | I9: =SUM(F17:F19) -> 0 | J9: =IF(I9="","",(RANK(I9,I5:I14))) -> 1
F10: =IFERROR(CHOOSE(D10,25,18,15,12,10,8,6,4,2,1)+(E10=1),"") ->  | H10: RENAULT | I10: =SUM(F20:F22) -> 0 | J10: =IF(I10="","",(RANK(I10,I5:I14))) -> 1
A11: VERSTAPPEN Max | B11: RED BULL | F11: 0 | H11: TORO ROSSO | I11: =SUM(F23:F25) -> 0 | J11: =IF(I11="","",(RANK(I11,I5:I14))) -> 1
A12: GASLY Pierre | F12: 0 | H12: HASS | I12: =SUM(F26:F28) -> 0 | J12: =IF(I12="","",(RANK(I12,I5:I14))) -> 1
F13: =IFERROR(CHOOSE(D13,25,18,15,12,10,8,6,4,2,1)+(E13=1),"") ->  | H13: Mc LAREN | I13: =SUM(F29:F31) -> 0 | J13: =IF(I13="","",(RANK(I13,I5:I14))) -> 1
A14: PEREZ Sergio | B14: RACING POINT | F14: 0 | H14: ALFA ROMÉO | I14: =SUM(F32:F34) -> 0 | J14: =IF(I14="","",(RANK(I14,I5:I14))) -> 1
A15: STROLL Lance | F15: 0
F16: =IFERROR(CHOOSE(D16,25,18,15,12,10,8,6,4,2,1)+(E16=1),"") -> 
A17: RUSSELL George | B17: WILLIAMS | F17: 0
A18: KUBICA Robert | F18: 0
F19: =IFERROR(CHOOSE(D19,25,18,15,12,10,8,6,4,2,1)+(E19=1),"") -> 
A20: RICCIARDO Daniel | B20: RENAULT | F20: 0
A21: HULKENBERG Nico | F21: 0
F22: =IFERROR(CHOOSE(D22,25,18,15,12,10,8,6,4,2,1)+(E22=1),"") -> 
A23: KVYAT Daniil | B23: TORO ROSSO | F23: 0
A24: ALBON Alexander | F24: 0
F25: =IFERROR(CHOOSE(D25,25,18,15,12,10,8,6,4,2,1)+(E25=1),"") -> 
A26: GROSJEAN Romain | B26: HAAS | F26: 0
A27: MAGNUSSEN Kevin | F27: 0
F28: =IFERROR(CHOOSE(D28,25,18,15,12,10,8,6,4,2,1)+(E28=1),"") -> 
A29: NORRIS Lando | B29: McLAREN | F29: 0
A30: SAINZ.Jr Carlos | F30: 0
F31: =IFERROR(CHOOSE(D31,25,18,15,12,10,8,6,4,2,1)+(E31=1),"") -> 
A32: RAÏKKÖNEN Kimi | B32: ALFA ROMEO | F32: 0
A33: GIOVANIZZI Antonio | F33: 0
F34: =IFERROR(CHOOSE(D34,25,18,15,12,10,8,6,4,2,1)+(E34=1),"") -> 

Sheet USA
A1: USA - 17 MARS 2019
A3: PILOTES | B3: ECURIES | C3: VOITURES | D3: Finish | E3: Pt tour | F3: Points | H3: CLASSEMENT
G4: =IF(F4="","",(RANK(F4,F4:F23))) ->  | H4: ÉCURIES | I4: POINTS | J4: RANG
A5: HAMILTON Lewis | B5: MERCEDES | F5: =IFERROR(CHOOSE(D5,25,18,15,12,10,8,6,4,2,1)+(E5=1),0) -> 0 | H5: MERCEDES | I5: =SUM(F5:F7) -> 0 | J5: =IF(I5="","",(RANK(I5,I5:I14))) -> 1
A6: BOTTAS Valterri | F6: =IFERROR(CHOOSE(D6,25,18,15,12,10,8,6,4,2,1)+(E6=1),0) -> 0 | H6: FERRARI | I6: =SUM(F8:F10) -> 0 | J6: =IF(I6="","",(RANK(I6,I5:I14))) -> 1
F7: =IFERROR(CHOOSE(D7,25,18,15,12,10,8,6,4,2,1)+(E7=1),"") ->  | H7: RED BULL | I7: =SUM(F11:F13) -> 0 | J7: =IF(I7="","",(RANK(I7,I5:I14))) -> 1
A8: VETTEL Sebastian | B8: FERRARI | F8: 0 | H8: RACING POINT | I8: =SUM(F14:F16) -> 0 | J8: =IF(I8="","",(RANK(I8,I5:I14))) -> 1
A9: LECLERC Charles | F9: 0 | H9: WILLIAMS | I9: =SUM(F17:F19) -> 0 | J9: =IF(I9="","",(RANK(I9,I5:I14))) -> 1
F10: =IFERROR(CHOOSE(D10,25,18,15,12,10,8,6,4,2,1)+(E10=1),"") ->  | H10: RENAULT | I10: =SUM(F20:F22) -> 0 | J10: =IF(I10="","",(RANK(I10,I5:I14))) -> 1
A11: VERSTAPPEN Max | B11: RED BULL | F11: 0 | H11: TORO ROSSO | I11: =SUM(F23:F25) -> 0 | J11: =IF(I11="","",(RANK(I11,I5:I14))) -> 1
A12: GASLY Pierre | F12: 0 | H12: HASS | I12: =SUM(F26:F28) -> 0 | J12: =IF(I12="","",(RANK(I12,I5:I14))) -> 1
F13: =IFERROR(CHOOSE(D13,25,18,15,12,10,8,6,4,2,1)+(E13=1),"") ->  | H13: Mc LAREN | I13: =SUM(F29:F31) -> 0 | J13: =IF(I13="","",(RANK(I13,I5:I14))) -> 1
A14: PEREZ Sergio | B14: RACING POINT | F14: 0 | H14: ALFA ROMÉO | I14: =SUM(F32:F34) -> 0 | J14: =IF(I14="","",(RANK(I14,I5:I14))) -> 1
A15: STROLL Lance | F15: 0
F16: =IFERROR(CHOOSE(D16,25,18,15,12,10,8,6,4,2,1)+(E16=1),"") -> 
A17: RUSSELL George | B17: WILLIAMS | F17: 0
A18: KUBICA Robert | F18: 0
F19: =IFERROR(CHOOSE(D19,25,18,15,12,10,8,6,4,2,1)+(E19=1),"") -> 
A20: RICCIARDO Daniel | B20: RENAULT | F20: 0
A21: HULKENBERG Nico | F21: 0
F22: =IFERROR(CHOOSE(D22,25,18,15,12,10,8,6,4,2,1)+(E22=1),"") -> 
A23: KVYAT Daniil | B23: TORO ROSSO | F23: 0
A24: ALBON Alexander | F24: 0
F25: =IFERROR(CHOOSE(D25,25,18,15,12,10,8,6,4,2,1)+(E25=1),"") -> 
A26: GROSJEAN Romain | B26: HAAS | F26: 0
A27: MAGNUSSEN Kevin | F27: 0
F28: =IFERROR(CHOOSE(D28,25,18,15,12,10,8,6,4,2,1)+(E28=1),"") -> 
A29: NORRIS Lando | B29: McLAREN | F29: 0
A30: SAINZ.Jr Carlos | F30: 0
F31: =IFERROR(CHOOSE(D31,25,18,15,12,10,8,6,4,2,1)+(E31=1),"") -> 
A32: RAÏKKÖNEN Kimi | B32: ALFA ROMEO | F32: 0
A33: GIOVANIZZI Antonio | F33: 0
F34: =IFERROR(CHOOSE(D34,25,18,15,12,10,8,6,4,2,1)+(E34=1),"") -> 

Sheet Brésil
A1: BRÉSIL - 17 MARS 2019
A3: PILOTES | B3: ECURIES | C3: VOITURES | D3: Finish | E3: Pt tour | F3: Points | H3: CLASSEMENT
G4: =IF(F4="","",(RANK(F4,F4:F23))) ->  | H4: ÉCURIES | I4: POINTS | J4: RANG
A5: HAMILTON Lewis | B5: MERCEDES | F5: =IFERROR(CHOOSE(D5,25,18,15,12,10,8,6,4,2,1)+(E5=1),0) -> 0 | H5: MERCEDES | I5: =SUM(F5:F7) -> 0 | J5: =IF(I5="","",(RANK(I5,I5:I14))) -> 1
A6: BOTTAS Valterri | F6: =IFERROR(CHOOSE(D6,25,18,15,12,10,8,6,4,2,1)+(E6=1),0) -> 0 | H6: FERRARI | I6: =SUM(F8:F10) -> 0 | J6: =IF(I6="","",(RANK(I6,I5:I14))) -> 1
F7: =IFERROR(CHOOSE(D7,25,18,15,12,10,8,6,4,2,1)+(E7=1),"") ->  | H7: RED BULL | I7: =SUM(F11:F13) -> 0 | J7: =IF(I7="","",(RANK(I7,I5:I14))) -> 1
A8: VETTEL Sebastian | B8: FERRARI | F8: 0 | H8: RACING POINT | I8: =SUM(F14:F16) -> 0 | J8: =IF(I8="","",(RANK(I8,I5:I14))) -> 1
A9: LECLERC Charles | F9: 0 | H9: WILLIAMS | I9: =SUM(F17:F19) -> 0 | J9: =IF(I9="","",(RANK(I9,I5:I14))) -> 1
F10: =IFERROR(CHOOSE(D10,25,18,15,12,10,8,6,4,2,1)+(E10=1),"") ->  | H10: RENAULT | I10: =SUM(F20:F22) -> 0 | J10: =IF(I10="","",(RANK(I10,I5:I14))) -> 1
A11: VERSTAPPEN Max | B11: RED BULL | F11: 0 | H11: TORO ROSSO | I11: =SUM(F23:F25) -> 0 | J11: =IF(I11="","",(RANK(I11,I5:I14))) -> 1
A12: GASLY Pierre | F12: 0 | H12: HASS | I12: =SUM(F26:F28) -> 0 | J12: =IF(I12="","",(RANK(I12,I5:I14))) -> 1
F13: =IFERROR(CHOOSE(D13,25,18,15,12,10,8,6,4,2,1)+(E13=1),"") ->  | H13: Mc LAREN | I13: =SUM(F29:F31) -> 0 | J13: =IF(I13="","",(RANK(I13,I5:I14))) -> 1
A14: PEREZ Sergio | B14: RACING POINT | F14: 0 | H14: ALFA ROMÉO | I14: =SUM(F32:F34) -> 0 | J14: =IF(I14="","",(RANK(I14,I5:I14))) -> 1
A15: STROLL Lance | F15: 0
F16: =IFERROR(CHOOSE(D16,25,18,15,12,10,8,6,4,2,1)+(E16=1),"") -> 
A17: RUSSELL George | B17: WILLIAMS | F17: 0
A18: KUBICA Robert | F18: 0
F19: =IFERROR(CHOOSE(D19,25,18,15,12,10,8,6,4,2,1)+(E19=1),"") -> 
A20: RICCIARDO Daniel | B20: RENAULT | F20: 0
A21: HULKENBERG Nico | F21: 0
F22: =IFERROR(CHOOSE(D22,25,18,15,12,10,8,6,4,2,1)+(E22=1),"") -> 
A23: KVYAT Daniil | B23: TORO ROSSO | F23: 0
A24: ALBON Alexander | F24: 0
F25: =IFERROR(CHOOSE(D25,25,18,15,12,10,8,6,4,2,1)+(E25=1),"") -> 
A26: GROSJEAN Romain | B26: HAAS | F26: 0
A27: MAGNUSSEN Kevin | F27: 0
F28: =IFERROR(CHOOSE(D28,25,18,15,12,10,8,6,4,2,1)+(E28=1),"") -> 
A29: NORRIS Lando | B29: McLAREN | F29: 0
A30: SAINZ.Jr Carlos | F30: 0
F31: =IFERROR(CHOOSE(D31,25,18,15,12,10,8,6,4,2,1)+(E31=1),"") -> 
A32: RAÏKKÖNEN Kimi | B32: ALFA ROMEO | F32: 0
A33: GIOVANIZZI Antonio | F33: 0
F34: =IFERROR(CHOOSE(D34,25,18,15,12,10,8,6,4,2,1)+(E34=1),"") -> 

Sheet Abu Dabi
A1: ABU DAHBI
A3: PILOTES | B3: ECURIES | C3: VOITURES | D3: Finish | E3: Pt tour | F3: Points | H3: CLASSEMENT
G4: =IF(F4="","",(RANK(F4,F4:F23))) ->  | H4: ÉCURIES | I4: POINTS | J4: RANG
A5: HAMILTON Lewis | B5: MERCEDES | F5: =IFERROR(CHOOSE(D5,25,18,15,12,10,8,6,4,2,1)+(E5=1),0) -> 0 | H5: MERCEDES | I5: =SUM(F5:F7) -> 0 | J5: =IF(I5="","",(RANK(I5,I5:I14))) -> 1
A6: BOTTAS Valterri | F6: =IFERROR(CHOOSE(D6,25,18,15,12,10,8,6,4,2,1)+(E6=1),0) -> 0 | H6: FERRARI | I6: =SUM(F8:F10) -> 0 | J6: =IF(I6="","",(RANK(I6,I5:I14))) -> 1
F7: =IFERROR(CHOOSE(D7,25,18,15,12,10,8,6,4,2,1)+(E7=1),"") ->  | H7: RED BULL | I7: =SUM(F11:F13) -> 0 | J7: =IF(I7="","",(RANK(I7,I5:I14))) -> 1
A8: VETTEL Sebastian | B8: FERRARI | F8: 0 | H8: RACING POINT | I8: =SUM(F14:F16) -> 0 | J8: =IF(I8="","",(RANK(I8,I5:I14))) -> 1
A9: LECLERC Charles | F9: 0 | H9: WILLIAMS | I9: =SUM(F17:F19) -> 0 | J9: =IF(I9="","",(RANK(I9,I5:I14))) -> 1
F10: =IFERROR(CHOOSE(D10,25,18,15,12,10,8,6,4,2,1)+(E10=1),"") ->  | H10: RENAULT | I10: =SUM(F20:F22) -> 0 | J10: =IF(I10="","",(RANK(I10,I5:I14))) -> 1
A11: VERSTAPPEN Max | B11: RED BULL | F11: 0 | H11: TORO ROSSO | I11: =SUM(F23:F25) -> 0 | J11: =IF(I11="","",(RANK(I11,I5:I14))) -> 1
A12: GASLY Pierre | F12: 0 | H12: HASS | I12: =SUM(F26:F28) -> 0 | J12: =IF(I12="","",(RANK(I12,I5:I14))) -> 1
F13: =IFERROR(CHOOSE(D13,25,18,15,12,10,8,6,4,2,1)+(E13=1),"") ->  | H13: Mc LAREN | I13: =SUM(F29:F31) -> 0 | J13: =IF(I13="","",(RANK(I13,I5:I14))) -> 1
A14: PEREZ Sergio | B14: RACING POINT | F14: 0 | H14: ALFA ROMÉO | I14: =SUM(F32:F34) -> 0 | J14: =IF(I14="","",(RANK(I14,I5:I14))) -> 1
A15: STROLL Lance | F15: 0
F16: =IFERROR(CHOOSE(D16,25,18,15,12,10,8,6,4,2,1)+(E16=1),"") -> 
A17: RUSSELL George | B17: WILLIAMS | F17: 0
A18: KUBICA Robert | F18: 0
F19: =IFERROR(CHOOSE(D19,25,18,15,12,10,8,6,4,2,1)+(E19=1),"") -> 
A20: RICCIARDO Daniel | B20: RENAULT | F20: 0
A21: HULKENBERG Nico | F21: 0
F22: =IFERROR(CHOOSE(D22,25,18,15,12,10,8,6,4,2,1)+(E22=1),"") -> 
A23: KVYAT Daniil | B23: TORO ROSSO | F23: 0
A24: ALBON Alexander | F24: 0
F25: =IFERROR(CHOOSE(D25,25,18,15,12,10,8,6,4,2,1)+(E25=1),"") -> 
A26: GROSJEAN Romain | B26: HAAS | F26: 0
A27: MAGNUSSEN Kevin | F27: 0
F28: =IFERROR(CHOOSE(D28,25,18,15,12,10,8,6,4,2,1)+(E28=1),"") -> 
A29: NORRIS Lando | B29: McLAREN | F29: 0
A30: SAINZ.Jr Carlos | F30: 0
F31: =IFERROR(CHOOSE(D31,25,18,15,12,10,8,6,4,2,1)+(E31=1),"") -> 
A32: RAÏKKÖNEN Kimi | B32: ALFA ROMEO | F32: 0
A33: GIOVANIZZI Antonio | F33: 0
F34: =IFERROR(CHOOSE(D34,25,18,15,12,10,8,6,4,2,1)+(E34=1),"") -> 
